{"text_format":"1","workbook":"xlsx","n_sheets":3,"sheets":["公表名簿（管内　建設工事）","公表名簿（管内　物品・役務）","等級(21-4月現在)"],"not_rendered":{"charts":0,"images":0,"macros":1,"external_links":0,"defined_names":4,"comments":0,"pivot_tables":0},"unopened":[],"bounds":{"document_bytes":16777216,"sheet_cells":100000,"rows_first":2000,"rows_last":500,"rows_between":2000,"halvings":0,"cell_chars":16384,"cell_head_chars":4096},"cells_cut":0,"cells_raw":0,"read":"whole","date_system":"1900"}

{"sheet":"公表名簿（管内　建設工事）","index":0,"n_rows":35,"n_cols":38,"rows_kept":35,"cut":false,"hidden":false,"merged":[[0,6,0,11]]}
["八匝水道企業団建設工事等入札参加業者資格者名簿（管内建設）　",null,null,null,null,null,"2025-04-01"]
["番号","区域","商号又は名称","所在地","代表者氏名","電話番号","ＦＡＸ","許可区分(土木)","土木一式","許可区分（建築）","建築一式","許可区分（電気）","電気","許可区分（管）","管","許可区分(ほ装)","ほ装","許可区分（塗装）","塗装","許可区分（防水）","防水","許可区分（機械器具）","機械器具設置","許可区分(電気)","電気通信","許可区分（水道施設）","水道施設","土木一式(等級)","建築一式(等級)","電気(等級)","管(等級)","ほ装(等級)","塗装(等級)","防水(等級)","機械器具設置(等級)","電気通信(等級)","水道施設(等級)","その他"]
[1,"管内","小原建設株式会社","匝瑳市八日市場ハの315番地","小原　久幸","0479-73-2121","0479-72-1088","特定",956,null,null,null,null,null,null,"特定",853,null,null,null,null,null,null,null,null,"特定",701,{"$f":"IF(NOT(ISBLANK(テーブル6[[#This Row],[土木一式]])),VLOOKUP(テーブル6[[#This Row],[土木一式]],土木[],2,TRUE), IF(NOT(ISBLANK(テーブル6[[#This Row],[許可区分(土木)]])),\"D\",\"-\"))","v":"A"},{"$f":"IF(NOT(ISBLANK(テーブル6[[#This Row],[建築一式]])),VLOOKUP(テーブル6[[#This Row],[建築一式]],建築[],2,TRUE), IF(NOT(ISBLANK(テーブル6[[#This Row],[許可区分（建築）]])),\"D\",\"-\"))","v":"-"},{"$f":"IF(NOT(ISBLANK(テーブル6[[#This Row],[電気]])),VLOOKUP(テーブル6[[#This Row],[電気]],電気[],2,TRUE), IF(NOT(ISBLANK(テーブル6[[#This Row],[許可区分（電気）]])),\"D\",\"-\"))","v":"-"},{"$f":"IF(NOT(ISBLANK(テーブル6[[#This Row],[管]])),VLOOKUP(テーブル6[[#This Row],[管]],管[],2,TRUE), IF(NOT(ISBLANK(テーブル6[[#This Row],[許可区分（管）]])),\"D\",\"-\"))","v":"-"},{"$f":"IF(NOT(ISBLANK(テーブル6[[#This Row],[ほ装]])),VLOOKUP(テーブル6[[#This Row],[ほ装]],ほ装[],2,TRUE), IF(NOT(ISBLANK(テーブル6[[#This Row],[許可区分(ほ装)]])),\"D\",\"-\"))","v":"A"},{"$f":"IF(NOT(ISBLANK(テーブル6[[#This Row],[塗装]])),VLOOKUP(テーブル6[[#This Row],[塗装]],塗装[],2,TRUE), IF(NOT(ISBLANK(テーブル6[[#This Row],[許可区分（塗装）]])),\"D\",\"-\"))","v":"-"},{"$f":"IF(NOT(ISBLANK(テーブル6[[#This Row],[防水]])),VLOOKUP(テーブル6[[#This Row],[防水]],塗装[],2,TRUE), IF(NOT(ISBLANK(テーブル6[[#This Row],[許可区分（防水）]])),\"D\",\"-\"))","v":"-"},{"$f":"IF(NOT(ISBLANK(テーブル6[[#This Row],[機械器具設置]])),VLOOKUP(テーブル6[[#This Row],[機械器具設置]],塗装[],2,TRUE), IF(NOT(ISBLANK(テーブル6[[#This Row],[許可区分（機械器具）]])),\"D\",\"-\"))","v":"-"},{"$f":"IF(NOT(ISBLANK(テーブル6[[#This Row],[電気通信]])),VLOOKUP(テーブル6[[#This Row],[電気通信]],電気[],2,TRUE), IF(NOT(ISBLANK(テーブル6[[#This Row],[許可区分(電気)]])),\"D\",\"-\"))","v":"-"},{"$f":"IF(NOT(ISBLANK(テーブル6[[#This Row],[水道施設]])),VLOOKUP(テーブル6[[#This Row],[水道施設]],水道[],2,TRUE), IF(NOT(ISBLANK(テーブル6[[#This Row],[許可区分（水道施設）]])),\"D\",\"-\"))","v":"B"}]
[2,"管内","株式会社丸二","匝瑳市八日市場ハの320番地の１","小原　靜子","0479-72-0833","0479-72-1088","一般",559,null,null,null,null,"一般",575,"一般",547,null,null,null,null,null,null,null,null,null,null,{"$f":"IF(NOT(ISBLANK(テーブル6[[#This Row],[土木一式]])),VLOOKUP(テーブル6[[#This Row],[土木一式]],土木[],2,TRUE), IF(NOT(ISBLANK(テーブル6[[#This Row],[許可区分(土木)]])),\"D\",\"-\"))","v":"C"},{"$f":"IF(NOT(ISBLANK(テーブル6[[#This Row],[建築一式]])),VLOOKUP(テーブル6[[#This Row],[建築一式]],建築[],2,TRUE), IF(NOT(ISBLANK(テーブル6[[#This Row],[許可区分（建築）]])),\"D\",\"-\"))","v":"-"},{"$f":"IF(NOT(ISBLANK(テーブル6[[#This Row],[電気]])),VLOOKUP(テーブル6[[#This Row],[電気]],電気[],2,TRUE), IF(NOT(ISBLANK(テーブル6[[#This Row],[許可区分（電気）]])),\"D\",\"-\"))","v":"-"},{"$f":"IF(NOT(ISBLANK(テーブル6[[#This Row],[管]])),VLOOKUP(テーブル6[[#This Row],[管]],管[],2,TRUE), IF(NOT(ISBLANK(テーブル6[[#This Row],[許可区分（管）]])),\"D\",\"-\"))","v":"C"},{"$f":"IF(NOT(ISBLANK(テーブル6[[#This Row],[ほ装]])),VLOOKUP(テーブル6[[#This Row],[ほ装]],ほ装[],2,TRUE), IF(NOT(ISBLANK(テーブル6[[#This Row],[許可区分(ほ装)]])),\"D\",\"-\"))","v":"C"},{"$f":"IF(NOT(ISBLANK(テーブル6[[#This Row],[塗装]])),VLOOKUP(テーブル6[[#This Row],[塗装]],塗装[],2,TRUE), IF(NOT(ISBLANK(テーブル6[[#This Row],[許可区分（塗装）]])),\"D\",\"-\"))","v":"-"},{"$f":"IF(NOT(ISBLANK(テーブル6[[#This Row],[防水]])),VLOOKUP(テーブル6[[#This Row],[防水]],塗装[],2,TRUE), IF(NOT(ISBLANK(テーブル6[[#This Row],[許可区分（防水）]])),\"D\",\"-\"))","v":"-"},{"$f":"IF(NOT(ISBLANK(テーブル6[[#This Row],[機械器具設置]])),VLOOKUP(テーブル6[[#This Row],[機械器具設置]],塗装[],2,TRUE), IF(NOT(ISBLANK(テーブル6[[#This Row],[許可区分（機械器具）]])),\"D\",\"-\"))","v":"-"},{"$f":"IF(NOT(ISBLANK(テーブル6[[#This Row],[電気通信]])),VLOOKUP(テーブル6[[#This Row],[電気通信]],電気[],2,TRUE), IF(NOT(ISBLANK(テーブル6[[#This Row],[許可区分(電気)]])),\"D\",\"-\"))","v":"-"},{"$f":"IF(NOT(ISBLANK(テーブル6[[#This Row],[水道施設]])),VLOOKUP(テーブル6[[#This Row],[水道施設]],水道[],2,TRUE), IF(NOT(ISBLANK(テーブル6[[#This Row],[許可区分（水道施設）]])),\"D\",\"-\"))","v":"-"}]
[3,"管内","東栄株式会社","匝瑳市八日市場ロ240-1","大塚　康広","0479-73-1431","0479-79-0708","一般",498,null,null,null,null,"一般",599,null,null,null,null,null,null,null,null,null,null,null,null,{"$f":"IF(NOT(ISBLANK(テーブル6[[#This Row],[土木一式]])),VLOOKUP(テーブル6[[#This Row],[土木一式]],土木[],2,TRUE), IF(NOT(ISBLANK(テーブル6[[#This Row],[許可区分(土木)]])),\"D\",\"-\"))","v":"D"},{"$f":"IF(NOT(ISBLANK(テーブル6[[#This Row],[建築一式]])),VLOOKUP(テーブル6[[#This Row],[建築一式]],建築[],2,TRUE), IF(NOT(ISBLANK(テーブル6[[#This Row],[許可区分（建築）]])),\"D\",\"-\"))","v":"-"},{"$f":"IF(NOT(ISBLANK(テーブル6[[#This Row],[電気]])),VLOOKUP(テーブル6[[#This Row],[電気]],電気[],2,TRUE), IF(NOT(ISBLANK(テーブル6[[#This Row],[許可区分（電気）]])),\"D\",\"-\"))","v":"-"},{"$f":"IF(NOT(ISBLANK(テーブル6[[#This Row],[管]])),VLOOKUP(テーブル6[[#This Row],[管]],管[],2,TRUE), IF(NOT(ISBLANK(テーブル6[[#This Row],[許可区分（管）]])),\"D\",\"-\"))","v":"C"},{"$f":"IF(NOT(ISBLANK(テーブル6[[#This Row],[ほ装]])),VLOOKUP(テーブル6[[#This Row],[ほ装]],ほ装[],2,TRUE), IF(NOT(ISBLANK(テーブル6[[#This Row],[許可区分(ほ装)]])),\"D\",\"-\"))","v":"-"},{"$f":"IF(NOT(ISBLANK(テーブル6[[#This Row],[塗装]])),VLOOKUP(テーブル6[[#This Row],[塗装]],塗装[],2,TRUE), IF(NOT(ISBLANK(テーブル6[[#This Row],[許可区分（塗装）]])),\"D\",\"-\"))","v":"-"},{"$f":"IF(NOT(ISBLANK(テーブル6[[#This Row],[防水]])),VLOOKUP(テーブル6[[#This Row],[防水]],塗装[],2,TRUE), IF(NOT(ISBLANK(テーブル6[[#This Row],[許可区分（防水）]])),\"D\",\"-\"))","v":"-"},{"$f":"IF(NOT(ISBLANK(テーブル6[[#This Row],[機械器具設置]])),VLOOKUP(テーブル6[[#This Row],[機械器具設置]],塗装[],2,TRUE), IF(NOT(ISBLANK(テーブル6[[#This Row],[許可区分（機械器具）]])),\"D\",\"-\"))","v":"-"},{"$f":"IF(NOT(ISBLANK(テーブル6[[#This Row],[電気通信]])),VLOOKUP(テーブル6[[#This Row],[電気通信]],電気[],2,TRUE), IF(NOT(ISBLANK(テーブル6[[#This Row],[許可区分(電気)]])),\"D\",\"-\"))","v":"-"},{"$f":"IF(NOT(ISBLANK(テーブル6[[#This Row],[水道施設]])),VLOOKUP(テーブル6[[#This Row],[水道施設]],水道[],2,TRUE), IF(NOT(ISBLANK(テーブル6[[#This Row],[許可区分（水道施設）]])),\"D\",\"-\"))","v":"-"}]
[4,"管内","三幸電機","匝瑳市八日市場イ2508番地","岩﨑　清隆","0479-72-0893","0479-73-6318","一般",659,null,null,null,null,"一般",640,"一般",585,null,null,null,null,null,null,null,null,null,null,{"$f":"IF(NOT(ISBLANK(テーブル6[[#This Row],[土木一式]])),VLOOKUP(テーブル6[[#This Row],[土木一式]],土木[],2,TRUE), IF(NOT(ISBLANK(テーブル6[[#This Row],[許可区分(土木)]])),\"D\",\"-\"))","v":"B"},{"$f":"IF(NOT(ISBLANK(テーブル6[[#This Row],[建築一式]])),VLOOKUP(テーブル6[[#This Row],[建築一式]],建築[],2,TRUE), IF(NOT(ISBLANK(テーブル6[[#This Row],[許可区分（建築）]])),\"D\",\"-\"))","v":"-"},{"$f":"IF(NOT(ISBLANK(テーブル6[[#This Row],[電気]])),VLOOKUP(テーブル6[[#This Row],[電気]],電気[],2,TRUE), IF(NOT(ISBLANK(テーブル6[[#This Row],[許可区分（電気）]])),\"D\",\"-\"))","v":"-"},{"$f":"IF(NOT(ISBLANK(テーブル6[[#This Row],[管]])),VLOOKUP(テーブル6[[#This Row],[管]],管[],2,TRUE), IF(NOT(ISBLANK(テーブル6[[#This Row],[許可区分（管）]])),\"D\",\"-\"))","v":"B"},{"$f":"IF(NOT(ISBLANK(テーブル6[[#This Row],[ほ装]])),VLOOKUP(テーブル6[[#This Row],[ほ装]],ほ装[],2,TRUE), IF(NOT(ISBLANK(テーブル6[[#This Row],[許可区分(ほ装)]])),\"D\",\"-\"))","v":"C"},{"$f":"IF(NOT(ISBLANK(テーブル6[[#This Row],[塗装]])),VLOOKUP(テーブル6[[#This Row],[塗装]],塗装[],2,TRUE), IF(NOT(ISBLANK(テーブル6[[#This Row],[許可区分（塗装）]])),\"D\",\"-\"))","v":"-"},{"$f":"IF(NOT(ISBLANK(テーブル6[[#This Row],[防水]])),VLOOKUP(テーブル6[[#This Row],[防水]],塗装[],2,TRUE), IF(NOT(ISBLANK(テーブル6[[#This Row],[許可区分（防水）]])),\"D\",\"-\"))","v":"-"},{"$f":"IF(NOT(ISBLANK(テーブル6[[#This Row],[機械器具設置]])),VLOOKUP(テーブル6[[#This Row],[機械器具設置]],塗装[],2,TRUE), IF(NOT(ISBLANK(テーブル6[[#This Row],[許可区分（機械器具）]])),\"D\",\"-\"))","v":"-"},{"$f":"IF(NOT(ISBLANK(テーブル6[[#This Row],[電気通信]])),VLOOKUP(テーブル6[[#This Row],[電気通信]],電気[],2,TRUE), IF(NOT(ISBLANK(テーブル6[[#This Row],[許可区分(電気)]])),\"D\",\"-\"))","v":"-"},{"$f":"IF(NOT(ISBLANK(テーブル6[[#This Row],[水道施設]])),VLOOKUP(テーブル6[[#This Row],[水道施設]],水道[],2,TRUE), IF(NOT(ISBLANK(テーブル6[[#This Row],[許可区分（水道施設）]])),\"D\",\"-\"))","v":"-"}]
[5,"管内","有限会社岩井住宅設備","匝瑳市上谷中687番地","岩井　聡光","0479-79-0356","0479-79-0357","一般",572,null,null,null,null,"一般",676,null,null,null,null,null,null,null,null,null,null,null,null,{"$f":"IF(NOT(ISBLANK(テーブル6[[#This Row],[土木一式]])),VLOOKUP(テーブル6[[#This Row],[土木一式]],土木[],2,TRUE), IF(NOT(ISBLANK(テーブル6[[#This Row],[許可区分(土木)]])),\"D\",\"-\"))","v":"C"},{"$f":"IF(NOT(ISBLANK(テーブル6[[#This Row],[建築一式]])),VLOOKUP(テーブル6[[#This Row],[建築一式]],建築[],2,TRUE), IF(NOT(ISBLANK(テーブル6[[#This Row],[許可区分（建築）]])),\"D\",\"-\"))","v":"-"},{"$f":"IF(NOT(ISBLANK(テーブル6[[#This Row],[電気]])),VLOOKUP(テーブル6[[#This Row],[電気]],電気[],2,TRUE), IF(NOT(ISBLANK(テーブル6[[#This Row],[許可区分（電気）]])),\"D\",\"-\"))","v":"-"},{"$f":"IF(NOT(ISBLANK(テーブル6[[#This Row],[管]])),VLOOKUP(テーブル6[[#This Row],[管]],管[],2,TRUE), IF(NOT(ISBLANK(テーブル6[[#This Row],[許可区分（管）]])),\"D\",\"-\"))","v":"B"},{"$f":"IF(NOT(ISBLANK(テーブル6[[#This Row],[ほ装]])),VLOOKUP(テーブル6[[#This Row],[ほ装]],ほ装[],2,TRUE), IF(NOT(ISBLANK(テーブル6[[#This Row],[許可区分(ほ装)]])),\"D\",\"-\"))","v":"-"},{"$f":"IF(NOT(ISBLANK(テーブル6[[#This Row],[塗装]])),VLOOKUP(テーブル6[[#This Row],[塗装]],塗装[],2,TRUE), IF(NOT(ISBLANK(テーブル6[[#This Row],[許可区分（塗装）]])),\"D\",\"-\"))","v":"-"},{"$f":"IF(NOT(ISBLANK(テーブル6[[#This Row],[防水]])),VLOOKUP(テーブル6[[#This Row],[防水]],塗装[],2,TRUE), IF(NOT(ISBLANK(テーブル6[[#This Row],[許可区分（防水）]])),\"D\",\"-\"))","v":"-"},{"$f":"IF(NOT(ISBLANK(テーブル6[[#This Row],[機械器具設置]])),VLOOKUP(テーブル6[[#This Row],[機械器具設置]],塗装[],2,TRUE), IF(NOT(ISBLANK(テーブル6[[#This Row],[許可区分（機械器具）]])),\"D\",\"-\"))","v":"-"},{"$f":"IF(NOT(ISBLANK(テーブル6[[#This Row],[電気通信]])),VLOOKUP(テーブル6[[#This Row],[電気通信]],電気[],2,TRUE), IF(NOT(ISBLANK(テーブル6[[#This Row],[許可区分(電気)]])),\"D\",\"-\"))","v":"-"},{"$f":"IF(NOT(ISBLANK(テーブル6[[#This Row],[水道施設]])),VLOOKUP(テーブル6[[#This Row],[水道施設]],水道[],2,TRUE), IF(NOT(ISBLANK(テーブル6[[#This Row],[許可区分（水道施設）]])),\"D\",\"-\"))","v":"-"}]
[6,"管内","片岡建設株式会社","匝瑳市飯倉284番地","片岡　朋枝","0479-72-2585","0479-73-6882","特定",1006,null,null,null,null,null,null,"特定",952,"特定",743,null,null,null,null,null,null,"特定",743,{"$f":"IF(NOT(ISBLANK(テーブル6[[#This Row],[土木一式]])),VLOOKUP(テーブル6[[#This Row],[土木一式]],土木[],2,TRUE), IF(NOT(ISBLANK(テーブル6[[#This Row],[許可区分(土木)]])),\"D\",\"-\"))","v":"A"},{"$f":"IF(NOT(ISBLANK(テーブル6[[#This Row],[建築一式]])),VLOOKUP(テーブル6[[#This Row],[建築一式]],建築[],2,TRUE), IF(NOT(ISBLANK(テーブル6[[#This Row],[許可区分（建築）]])),\"D\",\"-\"))","v":"-"},{"$f":"IF(NOT(ISBLANK(テーブル6[[#This Row],[電気]])),VLOOKUP(テーブル6[[#This Row],[電気]],電気[],2,TRUE), IF(NOT(ISBLANK(テーブル6[[#This Row],[許可区分（電気）]])),\"D\",\"-\"))","v":"-"},{"$f":"IF(NOT(ISBLANK(テーブル6[[#This Row],[管]])),VLOOKUP(テーブル6[[#This Row],[管]],管[],2,TRUE), IF(NOT(ISBLANK(テーブル6[[#This Row],[許可区分（管）]])),\"D\",\"-\"))","v":"-"},{"$f":"IF(NOT(ISBLANK(テーブル6[[#This Row],[ほ装]])),VLOOKUP(テーブル6[[#This Row],[ほ装]],ほ装[],2,TRUE), IF(NOT(ISBLANK(テーブル6[[#This Row],[許可区分(ほ装)]])),\"D\",\"-\"))","v":"A"},{"$f":"IF(NOT(ISBLANK(テーブル6[[#This Row],[塗装]])),VLOOKUP(テーブル6[[#This Row],[塗装]],塗装[],2,TRUE), IF(NOT(ISBLANK(テーブル6[[#This Row],[許可区分（塗装）]])),\"D\",\"-\"))","v":"B"},{"$f":"IF(NOT(ISBLANK(テーブル6[[#This Row],[防水]])),VLOOKUP(テーブル6[[#This Row],[防水]],塗装[],2,TRUE), IF(NOT(ISBLANK(テーブル6[[#This Row],[許可区分（防水）]])),\"D\",\"-\"))","v":"-"},{"$f":"IF(NOT(ISBLANK(テーブル6[[#This Row],[機械器具設置]])),VLOOKUP(テーブル6[[#This Row],[機械器具設置]],塗装[],2,TRUE), IF(NOT(ISBLANK(テーブル6[[#This Row],[許可区分（機械器具）]])),\"D\",\"-\"))","v":"-"},{"$f":"IF(NOT(ISBLANK(テーブル6[[#This Row],[電気通信]])),VLOOKUP(テーブル6[[#This Row],[電気通信]],電気[],2,TRUE), IF(NOT(ISBLANK(テーブル6[[#This Row],[許可区分(電気)]])),\"D\",\"-\"))","v":"-"},{"$f":"IF(NOT(ISBLANK(テーブル6[[#This Row],[水道施設]])),VLOOKUP(テーブル6[[#This Row],[水道施設]],水道[],2,TRUE), IF(NOT(ISBLANK(テーブル6[[#This Row],[許可区分（水道施設）]])),\"D\",\"-\"))","v":"B"}]
[7,"管内","株式会社三橋土木","匝瑳市吉田1525番地","三橋　宏","0479-79-0321","0479-73-1626","一般",752,null,null,null,null,null,null,"一般",735,null,null,null,null,null,null,null,null,null,null,{"$f":"IF(NOT(ISBLANK(テーブル6[[#This Row],[土木一式]])),VLOOKUP(テーブル6[[#This Row],[土木一式]],土木[],2,TRUE), IF(NOT(ISBLANK(テーブル6[[#This Row],[許可区分(土木)]])),\"D\",\"-\"))","v":"A"},{"$f":"IF(NOT(ISBLANK(テーブル6[[#This Row],[建築一式]])),VLOOKUP(テーブル6[[#This Row],[建築一式]],建築[],2,TRUE), IF(NOT(ISBLANK(テーブル6[[#This Row],[許可区分（建築）]])),\"D\",\"-\"))","v":"-"},{"$f":"IF(NOT(ISBLANK(テーブル6[[#This Row],[電気]])),VLOOKUP(テーブル6[[#This Row],[電気]],電気[],2,TRUE), IF(NOT(ISBLANK(テーブル6[[#This Row],[許可区分（電気）]])),\"D\",\"-\"))","v":"-"},{"$f":"IF(NOT(ISBLANK(テーブル6[[#This Row],[管]])),VLOOKUP(テーブル6[[#This Row],[管]],管[],2,TRUE), IF(NOT(ISBLANK(テーブル6[[#This Row],[許可区分（管）]])),\"D\",\"-\"))","v":"-"},{"$f":"IF(NOT(ISBLANK(テーブル6[[#This Row],[ほ装]])),VLOOKUP(テーブル6[[#This Row],[ほ装]],ほ装[],2,TRUE), IF(NOT(ISBLANK(テーブル6[[#This Row],[許可区分(ほ装)]])),\"D\",\"-\"))","v":"A"},{"$f":"IF(NOT(ISBLANK(テーブル6[[#This Row],[塗装]])),VLOOKUP(テーブル6[[#This Row],[塗装]],塗装[],2,TRUE), IF(NOT(ISBLANK(テーブル6[[#This Row],[許可区分（塗装）]])),\"D\",\"-\"))","v":"-"},{"$f":"IF(NOT(ISBLANK(テーブル6[[#This Row],[防水]])),VLOOKUP(テーブル6[[#This Row],[防水]],塗装[],2,TRUE), IF(NOT(ISBLANK(テーブル6[[#This Row],[許可区分（防水）]])),\"D\",\"-\"))","v":"-"},{"$f":"IF(NOT(ISBLANK(テーブル6[[#This Row],[機械器具設置]])),VLOOKUP(テーブル6[[#This Row],[機械器具設置]],塗装[],2,TRUE), IF(NOT(ISBLANK(テーブル6[[#This Row],[許可区分（機械器具）]])),\"D\",\"-\"))","v":"-"},{"$f":"IF(NOT(ISBLANK(テーブル6[[#This Row],[電気通信]])),VLOOKUP(テーブル6[[#This Row],[電気通信]],電気[],2,TRUE), IF(NOT(ISBLANK(テーブル6[[#This Row],[許可区分(電気)]])),\"D\",\"-\"))","v":"-"},{"$f":"IF(NOT(ISBLANK(テーブル6[[#This Row],[水道施設]])),VLOOKUP(テーブル6[[#This Row],[水道施設]],水道[],2,TRUE), IF(NOT(ISBLANK(テーブル6[[#This Row],[許可区分（水道施設）]])),\"D\",\"-\"))","v":"-"}]
[8,"管内","有限会社川嶋土木","山武郡横芝光町尾垂ロ533","川嶋　清一","0479-84-0735","0479-84-0735","一般",720,null,null,null,null,"一般",609,"一般",623,null,null,null,null,null,null,null,null,null,null,{"$f":"IF(NOT(ISBLANK(テーブル6[[#This Row],[土木一式]])),VLOOKUP(テーブル6[[#This Row],[土木一式]],土木[],2,TRUE), IF(NOT(ISBLANK(テーブル6[[#This Row],[許可区分(土木)]])),\"D\",\"-\"))","v":"B"},{"$f":"IF(NOT(ISBLANK(テーブル6[[#This Row],[建築一式]])),VLOOKUP(テーブル6[[#This Row],[建築一式]],建築[],2,TRUE), IF(NOT(ISBLANK(テーブル6[[#This Row],[許可区分（建築）]])),\"D\",\"-\"))","v":"-"},{"$f":"IF(NOT(ISBLANK(テーブル6[[#This Row],[電気]])),VLOOKUP(テーブル6[[#This Row],[電気]],電気[],2,TRUE), IF(NOT(ISBLANK(テーブル6[[#This Row],[許可区分（電気）]])),\"D\",\"-\"))","v":"-"},{"$f":"IF(NOT(ISBLANK(テーブル6[[#This Row],[管]])),VLOOKUP(テーブル6[[#This Row],[管]],管[],2,TRUE), IF(NOT(ISBLANK(テーブル6[[#This Row],[許可区分（管）]])),\"D\",\"-\"))","v":"B"},{"$f":"IF(NOT(ISBLANK(テーブル6[[#This Row],[ほ装]])),VLOOKUP(テーブル6[[#This Row],[ほ装]],ほ装[],2,TRUE), IF(NOT(ISBLANK(テーブル6[[#This Row],[許可区分(ほ装)]])),\"D\",\"-\"))","v":"B"},{"$f":"IF(NOT(ISBLANK(テーブル6[[#This Row],[塗装]])),VLOOKUP(テーブル6[[#This Row],[塗装]],塗装[],2,TRUE), IF(NOT(ISBLANK(テーブル6[[#This Row],[許可区分（塗装）]])),\"D\",\"-\"))","v":"-"},{"$f":"IF(NOT(ISBLANK(テーブル6[[#This Row],[防水]])),VLOOKUP(テーブル6[[#This Row],[防水]],塗装[],2,TRUE), IF(NOT(ISBLANK(テーブル6[[#This Row],[許可区分（防水）]])),\"D\",\"-\"))","v":"-"},{"$f":"IF(NOT(ISBLANK(テーブル6[[#This Row],[機械器具設置]])),VLOOKUP(テーブル6[[#This Row],[機械器具設置]],塗装[],2,TRUE), IF(NOT(ISBLANK(テーブル6[[#This Row],[許可区分（機械器具）]])),\"D\",\"-\"))","v":"-"},{"$f":"IF(NOT(ISBLANK(テーブル6[[#This Row],[電気通信]])),VLOOKUP(テーブル6[[#This Row],[電気通信]],電気[],2,TRUE), IF(NOT(ISBLANK(テーブル6[[#This Row],[許可区分(電気)]])),\"D\",\"-\"))","v":"-"},{"$f":"IF(NOT(ISBLANK(テーブル6[[#This Row],[水道施設]])),VLOOKUP(テーブル6[[#This Row],[水道施設]],水道[],2,TRUE), IF(NOT(ISBLANK(テーブル6[[#This Row],[許可区分（水道施設）]])),\"D\",\"-\"))","v":"-"}]
[9,"管内","三ツ木建設株式会社","匝瑳市横須賀118番地","森　隆一","0479-72-0433","0479-73-2344","特定",851,null,null,null,null,null,null,"特定",801,null,null,null,null,null,null,null,null,null,null,{"$f":"IF(NOT(ISBLANK(テーブル6[[#This Row],[土木一式]])),VLOOKUP(テーブル6[[#This Row],[土木一式]],土木[],2,TRUE), IF(NOT(ISBLANK(テーブル6[[#This Row],[許可区分(土木)]])),\"D\",\"-\"))","v":"A"},{"$f":"IF(NOT(ISBLANK(テーブル6[[#This Row],[建築一式]])),VLOOKUP(テーブル6[[#This Row],[建築一式]],建築[],2,TRUE), IF(NOT(ISBLANK(テーブル6[[#This Row],[許可区分（建築）]])),\"D\",\"-\"))","v":"-"},{"$f":"IF(NOT(ISBLANK(テーブル6[[#This Row],[電気]])),VLOOKUP(テーブル6[[#This Row],[電気]],電気[],2,TRUE), IF(NOT(ISBLANK(テーブル6[[#This Row],[許可区分（電気）]])),\"D\",\"-\"))","v":"-"},{"$f":"IF(NOT(ISBLANK(テーブル6[[#This Row],[管]])),VLOOKUP(テーブル6[[#This Row],[管]],管[],2,TRUE), IF(NOT(ISBLANK(テーブル6[[#This Row],[許可区分（管）]])),\"D\",\"-\"))","v":"-"},{"$f":"IF(NOT(ISBLANK(テーブル6[[#This Row],[ほ装]])),VLOOKUP(テーブル6[[#This Row],[ほ装]],ほ装[],2,TRUE), IF(NOT(ISBLANK(テーブル6[[#This Row],[許可区分(ほ装)]])),\"D\",\"-\"))","v":"A"},{"$f":"IF(NOT(ISBLANK(テーブル6[[#This Row],[塗装]])),VLOOKUP(テーブル6[[#This Row],[塗装]],塗装[],2,TRUE), IF(NOT(ISBLANK(テーブル6[[#This Row],[許可区分（塗装）]])),\"D\",\"-\"))","v":"-"},{"$f":"IF(NOT(ISBLANK(テーブル6[[#This Row],[防水]])),VLOOKUP(テーブル6[[#This Row],[防水]],塗装[],2,TRUE), IF(NOT(ISBLANK(テーブル6[[#This Row],[許可区分（防水）]])),\"D\",\"-\"))","v":"-"},{"$f":"IF(NOT(ISBLANK(テーブル6[[#This Row],[機械器具設置]])),VLOOKUP(テーブル6[[#This Row],[機械器具設置]],塗装[],2,TRUE), IF(NOT(ISBLANK(テーブル6[[#This Row],[許可区分（機械器具）]])),\"D\",\"-\"))","v":"-"},{"$f":"IF(NOT(ISBLANK(テーブル6[[#This Row],[電気通信]])),VLOOKUP(テーブル6[[#This Row],[電気通信]],電気[],2,TRUE), IF(NOT(ISBLANK(テーブル6[[#This Row],[許可区分(電気)]])),\"D\",\"-\"))","v":"-"},{"$f":"IF(NOT(ISBLANK(テーブル6[[#This Row],[水道施設]])),VLOOKUP(テーブル6[[#This Row],[水道施設]],水道[],2,TRUE), IF(NOT(ISBLANK(テーブル6[[#This Row],[許可区分（水道施設）]])),\"D\",\"-\"))","v":"-"}]
[10,"管内","株式会社ニューテック康和　千葉支店","匝瑳市野手958番地1","飯田　洋之","0479-67-3211","0479-67-3215","特定",1132,null,null,null,null,null,null,"特定",1104,"特定",710,null,null,null,null,null,null,"特定",776,{"$f":"IF(NOT(ISBLANK(テーブル6[[#This Row],[土木一式]])),VLOOKUP(テーブル6[[#This Row],[土木一式]],土木[],2,TRUE), IF(NOT(ISBLANK(テーブル6[[#This Row],[許可区分(土木)]])),\"D\",\"-\"))","v":"A"},{"$f":"IF(NOT(ISBLANK(テーブル6[[#This Row],[建築一式]])),VLOOKUP(テーブル6[[#This Row],[建築一式]],建築[],2,TRUE), IF(NOT(ISBLANK(テーブル6[[#This Row],[許可区分（建築）]])),\"D\",\"-\"))","v":"-"},{"$f":"IF(NOT(ISBLANK(テーブル6[[#This Row],[電気]])),VLOOKUP(テーブル6[[#This Row],[電気]],電気[],2,TRUE), IF(NOT(ISBLANK(テーブル6[[#This Row],[許可区分（電気）]])),\"D\",\"-\"))","v":"-"},{"$f":"IF(NOT(ISBLANK(テーブル6[[#This Row],[管]])),VLOOKUP(テーブル6[[#This Row],[管]],管[],2,TRUE), IF(NOT(ISBLANK(テーブル6[[#This Row],[許可区分（管）]])),\"D\",\"-\"))","v":"-"},{"$f":"IF(NOT(ISBLANK(テーブル6[[#This Row],[ほ装]])),VLOOKUP(テーブル6[[#This Row],[ほ装]],ほ装[],2,TRUE), IF(NOT(ISBLANK(テーブル6[[#This Row],[許可区分(ほ装)]])),\"D\",\"-\"))","v":"A"},{"$f":"IF(NOT(ISBLANK(テーブル6[[#This Row],[塗装]])),VLOOKUP(テーブル6[[#This Row],[塗装]],塗装[],2,TRUE), IF(NOT(ISBLANK(テーブル6[[#This Row],[許可区分（塗装）]])),\"D\",\"-\"))","v":"B"},{"$f":"IF(NOT(ISBLANK(テーブル6[[#This Row],[防水]])),VLOOKUP(テーブル6[[#This Row],[防水]],塗装[],2,TRUE), IF(NOT(ISBLANK(テーブル6[[#This Row],[許可区分（防水）]])),\"D\",\"-\"))","v":"-"},{"$f":"IF(NOT(ISBLANK(テーブル6[[#This Row],[機械器具設置]])),VLOOKUP(テーブル6[[#This Row],[機械器具設置]],塗装[],2,TRUE), IF(NOT(ISBLANK(テーブル6[[#This Row],[許可区分（機械器具）]])),\"D\",\"-\"))","v":"-"},{"$f":"IF(NOT(ISBLANK(テーブル6[[#This Row],[電気通信]])),VLOOKUP(テーブル6[[#This Row],[電気通信]],電気[],2,TRUE), IF(NOT(ISBLANK(テーブル6[[#This Row],[許可区分(電気)]])),\"D\",\"-\"))","v":"-"},{"$f":"IF(NOT(ISBLANK(テーブル6[[#This Row],[水道施設]])),VLOOKUP(テーブル6[[#This Row],[水道施設]],水道[],2,TRUE), IF(NOT(ISBLANK(テーブル6[[#This Row],[許可区分（水道施設）]])),\"D\",\"-\"))","v":"B"}]
[11,"管内","ダイシン工業株式会社","山武郡横芝光町宮川7436番地","大木　要輔","0479-84-1726","0479-84-0806","一般",556,null,null,null,null,"一般",621,null,null,null,null,null,null,null,null,null,null,null,null,{"$f":"IF(NOT(ISBLANK(テーブル6[[#This Row],[土木一式]])),VLOOKUP(テーブル6[[#This Row],[土木一式]],土木[],2,TRUE), IF(NOT(ISBLANK(テーブル6[[#This Row],[許可区分(土木)]])),\"D\",\"-\"))","v":"C"},{"$f":"IF(NOT(ISBLANK(テーブル6[[#This Row],[建築一式]])),VLOOKUP(テーブル6[[#This Row],[建築一式]],建築[],2,TRUE), IF(NOT(ISBLANK(テーブル6[[#This Row],[許可区分（建築）]])),\"D\",\"-\"))","v":"-"},{"$f":"IF(NOT(ISBLANK(テーブル6[[#This Row],[電気]])),VLOOKUP(テーブル6[[#This Row],[電気]],電気[],2,TRUE), IF(NOT(ISBLANK(テーブル6[[#This Row],[許可区分（電気）]])),\"D\",\"-\"))","v":"-"},{"$f":"IF(NOT(ISBLANK(テーブル6[[#This Row],[管]])),VLOOKUP(テーブル6[[#This Row],[管]],管[],2,TRUE), IF(NOT(ISBLANK(テーブル6[[#This Row],[許可区分（管）]])),\"D\",\"-\"))","v":"B"},{"$f":"IF(NOT(ISBLANK(テーブル6[[#This Row],[ほ装]])),VLOOKUP(テーブル6[[#This Row],[ほ装]],ほ装[],2,TRUE), IF(NOT(ISBLANK(テーブル6[[#This Row],[許可区分(ほ装)]])),\"D\",\"-\"))","v":"-"},{"$f":"IF(NOT(ISBLANK(テーブル6[[#This Row],[塗装]])),VLOOKUP(テーブル6[[#This Row],[塗装]],塗装[],2,TRUE), IF(NOT(ISBLANK(テーブル6[[#This Row],[許可区分（塗装）]])),\"D\",\"-\"))","v":"-"},{"$f":"IF(NOT(ISBLANK(テーブル6[[#This Row],[防水]])),VLOOKUP(テーブル6[[#This Row],[防水]],塗装[],2,TRUE), IF(NOT(ISBLANK(テーブル6[[#This Row],[許可区分（防水）]])),\"D\",\"-\"))","v":"-"},{"$f":"IF(NOT(ISBLANK(テーブル6[[#This Row],[機械器具設置]])),VLOOKUP(テーブル6[[#This Row],[機械器具設置]],塗装[],2,TRUE), IF(NOT(ISBLANK(テーブル6[[#This Row],[許可区分（機械器具）]])),\"D\",\"-\"))","v":"-"},{"$f":"IF(NOT(ISBLANK(テーブル6[[#This Row],[電気通信]])),VLOOKUP(テーブル6[[#This Row],[電気通信]],電気[],2,TRUE), IF(NOT(ISBLANK(テーブル6[[#This Row],[許可区分(電気)]])),\"D\",\"-\"))","v":"-"},{"$f":"IF(NOT(ISBLANK(テーブル6[[#This Row],[水道施設]])),VLOOKUP(テーブル6[[#This Row],[水道施設]],水道[],2,TRUE), IF(NOT(ISBLANK(テーブル6[[#This Row],[許可区分（水道施設）]])),\"D\",\"-\"))","v":"-"}]
[12,"管内","鵜沢建設株式会社　匝瑳支店","匝瑳市上谷中2167番地1","鵜沢　和広","0479-72-1123","0479-73-6766","特定",661,"特定",1138,null,null,"特定",664,"特定",663,"特定",679,"特定",680,null,null,null,null,null,null,{"$f":"IF(NOT(ISBLANK(テーブル6[[#This Row],[土木一式]])),VLOOKUP(テーブル6[[#This Row],[土木一式]],土木[],2,TRUE), IF(NOT(ISBLANK(テーブル6[[#This Row],[許可区分(土木)]])),\"D\",\"-\"))","v":"B"},{"$f":"IF(NOT(ISBLANK(テーブル6[[#This Row],[建築一式]])),VLOOKUP(テーブル6[[#This Row],[建築一式]],建築[],2,TRUE), IF(NOT(ISBLANK(テーブル6[[#This Row],[許可区分（建築）]])),\"D\",\"-\"))","v":"A"},{"$f":"IF(NOT(ISBLANK(テーブル6[[#This Row],[電気]])),VLOOKUP(テーブル6[[#This Row],[電気]],電気[],2,TRUE), IF(NOT(ISBLANK(テーブル6[[#This Row],[許可区分（電気）]])),\"D\",\"-\"))","v":"-"},{"$f":"IF(NOT(ISBLANK(テーブル6[[#This Row],[管]])),VLOOKUP(テーブル6[[#This Row],[管]],管[],2,TRUE), IF(NOT(ISBLANK(テーブル6[[#This Row],[許可区分（管）]])),\"D\",\"-\"))","v":"B"},{"$f":"IF(NOT(ISBLANK(テーブル6[[#This Row],[ほ装]])),VLOOKUP(テーブル6[[#This Row],[ほ装]],ほ装[],2,TRUE), IF(NOT(ISBLANK(テーブル6[[#This Row],[許可区分(ほ装)]])),\"D\",\"-\"))","v":"B"},{"$f":"IF(NOT(ISBLANK(テーブル6[[#This Row],[塗装]])),VLOOKUP(テーブル6[[#This Row],[塗装]],塗装[],2,TRUE), IF(NOT(ISBLANK(テーブル6[[#This Row],[許可区分（塗装）]])),\"D\",\"-\"))","v":"C"},{"$f":"IF(NOT(ISBLANK(テーブル6[[#This Row],[防水]])),VLOOKUP(テーブル6[[#This Row],[防水]],塗装[],2,TRUE), IF(NOT(ISBLANK(テーブル6[[#This Row],[許可区分（防水）]])),\"D\",\"-\"))","v":"C"},{"$f":"IF(NOT(ISBLANK(テーブル6[[#This Row],[機械器具設置]])),VLOOKUP(テーブル6[[#This Row],[機械器具設置]],塗装[],2,TRUE), IF(NOT(ISBLANK(テーブル6[[#This Row],[許可区分（機械器具）]])),\"D\",\"-\"))","v":"-"},{"$f":"IF(NOT(ISBLANK(テーブル6[[#This Row],[電気通信]])),VLOOKUP(テーブル6[[#This Row],[電気通信]],電気[],2,TRUE), IF(NOT(ISBLANK(テーブル6[[#This Row],[許可区分(電気)]])),\"D\",\"-\"))","v":"-"},{"$f":"IF(NOT(ISBLANK(テーブル6[[#This Row],[水道施設]])),VLOOKUP(テーブル6[[#This Row],[水道施設]],水道[],2,TRUE), IF(NOT(ISBLANK(テーブル6[[#This Row],[許可区分（水道施設）]])),\"D\",\"-\"))","v":"-"}]
[13,"管内","株式会社双雲","匝瑳市椿1663番地16","松戸　一裕","0479-85-6204","0479-85-6205","一般",577,null,null,null,null,"一般",701,null,null,null,null,null,null,null,null,null,null,null,null,{"$f":"IF(NOT(ISBLANK(テーブル6[[#This Row],[土木一式]])),VLOOKUP(テーブル6[[#This Row],[土木一式]],土木[],2,TRUE), IF(NOT(ISBLANK(テーブル6[[#This Row],[許可区分(土木)]])),\"D\",\"-\"))","v":"C"},{"$f":"IF(NOT(ISBLANK(テーブル6[[#This Row],[建築一式]])),VLOOKUP(テーブル6[[#This Row],[建築一式]],建築[],2,TRUE), IF(NOT(ISBLANK(テーブル6[[#This Row],[許可区分（建築）]])),\"D\",\"-\"))","v":"-"},{"$f":"IF(NOT(ISBLANK(テーブル6[[#This Row],[電気]])),VLOOKUP(テーブル6[[#This Row],[電気]],電気[],2,TRUE), IF(NOT(ISBLANK(テーブル6[[#This Row],[許可区分（電気）]])),\"D\",\"-\"))","v":"-"},{"$f":"IF(NOT(ISBLANK(テーブル6[[#This Row],[管]])),VLOOKUP(テーブル6[[#This Row],[管]],管[],2,TRUE), IF(NOT(ISBLANK(テーブル6[[#This Row],[許可区分（管）]])),\"D\",\"-\"))","v":"A"},{"$f":"IF(NOT(ISBLANK(テーブル6[[#This Row],[ほ装]])),VLOOKUP(テーブル6[[#This Row],[ほ装]],ほ装[],2,TRUE), IF(NOT(ISBLANK(テーブル6[[#This Row],[許可区分(ほ装)]])),\"D\",\"-\"))","v":"-"},{"$f":"IF(NOT(ISBLANK(テーブル6[[#This Row],[塗装]])),VLOOKUP(テーブル6[[#This Row],[塗装]],塗装[],2,TRUE), IF(NOT(ISBLANK(テーブル6[[#This Row],[許可区分（塗装）]])),\"D\",\"-\"))","v":"-"},{"$f":"IF(NOT(ISBLANK(テーブル6[[#This Row],[防水]])),VLOOKUP(テーブル6[[#This Row],[防水]],塗装[],2,TRUE), IF(NOT(ISBLANK(テーブル6[[#This Row],[許可区分（防水）]])),\"D\",\"-\"))","v":"-"},{"$f":"IF(NOT(ISBLANK(テーブル6[[#This Row],[機械器具設置]])),VLOOKUP(テーブル6[[#This Row],[機械器具設置]],塗装[],2,TRUE), IF(NOT(ISBLANK(テーブル6[[#This Row],[許可区分（機械器具）]])),\"D\",\"-\"))","v":"-"},{"$f":"IF(NOT(ISBLANK(テーブル6[[#This Row],[電気通信]])),VLOOKUP(テーブル6[[#This Row],[電気通信]],電気[],2,TRUE), IF(NOT(ISBLANK(テーブル6[[#This Row],[許可区分(電気)]])),\"D\",\"-\"))","v":"-"},{"$f":"IF(NOT(ISBLANK(テーブル6[[#This Row],[水道施設]])),VLOOKUP(テーブル6[[#This Row],[水道施設]],水道[],2,TRUE), IF(NOT(ISBLANK(テーブル6[[#This Row],[許可区分（水道施設）]])),\"D\",\"-\"))","v":"-"}]
[14,"管内","有限会社第一住宅設備","山武郡横芝光町二又1191番地","片岡　浩","0479-85-0034","0479-85-1500",null,null,null,null,null,null,"一般",698,null,null,null,null,null,null,null,null,null,null,null,null,{"$f":"IF(NOT(ISBLANK(テーブル6[[#This Row],[土木一式]])),VLOOKUP(テーブル6[[#This Row],[土木一式]],土木[],2,TRUE), IF(NOT(ISBLANK(テーブル6[[#This Row],[許可区分(土木)]])),\"D\",\"-\"))","v":"-"},{"$f":"IF(NOT(ISBLANK(テーブル6[[#This Row],[建築一式]])),VLOOKUP(テーブル6[[#This Row],[建築一式]],建築[],2,TRUE), IF(NOT(ISBLANK(テーブル6[[#This Row],[許可区分（建築）]])),\"D\",\"-\"))","v":"-"},{"$f":"IF(NOT(ISBLANK(テーブル6[[#This Row],[電気]])),VLOOKUP(テーブル6[[#This Row],[電気]],電気[],2,TRUE), IF(NOT(ISBLANK(テーブル6[[#This Row],[許可区分（電気）]])),\"D\",\"-\"))","v":"-"},{"$f":"IF(NOT(ISBLANK(テーブル6[[#This Row],[管]])),VLOOKUP(テーブル6[[#This Row],[管]],管[],2,TRUE), IF(NOT(ISBLANK(テーブル6[[#This Row],[許可区分（管）]])),\"D\",\"-\"))","v":"B"},{"$f":"IF(NOT(ISBLANK(テーブル6[[#This Row],[ほ装]])),VLOOKUP(テーブル6[[#This Row],[ほ装]],ほ装[],2,TRUE), IF(NOT(ISBLANK(テーブル6[[#This Row],[許可区分(ほ装)]])),\"D\",\"-\"))","v":"-"},{"$f":"IF(NOT(ISBLANK(テーブル6[[#This Row],[塗装]])),VLOOKUP(テーブル6[[#This Row],[塗装]],塗装[],2,TRUE), IF(NOT(ISBLANK(テーブル6[[#This Row],[許可区分（塗装）]])),\"D\",\"-\"))","v":"-"},{"$f":"IF(NOT(ISBLANK(テーブル6[[#This Row],[防水]])),VLOOKUP(テーブル6[[#This Row],[防水]],塗装[],2,TRUE), IF(NOT(ISBLANK(テーブル6[[#This Row],[許可区分（防水）]])),\"D\",\"-\"))","v":"-"},{"$f":"IF(NOT(ISBLANK(テーブル6[[#This Row],[機械器具設置]])),VLOOKUP(テーブル6[[#This Row],[機械器具設置]],塗装[],2,TRUE), IF(NOT(ISBLANK(テーブル6[[#This Row],[許可区分（機械器具）]])),\"D\",\"-\"))","v":"-"},{"$f":"IF(NOT(ISBLANK(テーブル6[[#This Row],[電気通信]])),VLOOKUP(テーブル6[[#This Row],[電気通信]],電気[],2,TRUE), IF(NOT(ISBLANK(テーブル6[[#This Row],[許可区分(電気)]])),\"D\",\"-\"))","v":"-"},{"$f":"IF(NOT(ISBLANK(テーブル6[[#This Row],[水道施設]])),VLOOKUP(テーブル6[[#This Row],[水道施設]],水道[],2,TRUE), IF(NOT(ISBLANK(テーブル6[[#This Row],[許可区分（水道施設）]])),\"D\",\"-\"))","v":"-"}]
[15,"管内","株式会社五十嵐商会　海匝営業所","（管内　物品・役務）",null,null,null,null,null,null,null,null,null,null,null,null,null,null,null,null,null,null,null,null,null,null,null,{"$f":"IF(NOT(ISBLANK(テーブル6[[#This Row],[土木一式]])),VLOOKUP(テーブル6[[#This Row],[土木一式]],土木[],2,TRUE), IF(NOT(ISBLANK(テーブル6[[#This Row],[許可区分(土木)]])),\"D\",\"-\"))","v":"-"},{"$f":"IF(NOT(ISBLANK(テーブル6[[#This Row],[建築一式]])),VLOOKUP(テーブル6[[#This Row],[建築一式]],建築[],2,TRUE), IF(NOT(ISBLANK(テーブル6[[#This Row],[許可区分（建築）]])),\"D\",\"-\"))","v":"-"},{"$f":"IF(NOT(ISBLANK(テーブル6[[#This Row],[電気]])),VLOOKUP(テーブル6[[#This Row],[電気]],電気[],2,TRUE), IF(NOT(ISBLANK(テーブル6[[#This Row],[許可区分（電気）]])),\"D\",\"-\"))","v":"-"},{"$f":"IF(NOT(ISBLANK(テーブル6[[#This Row],[管]])),VLOOKUP(テーブル6[[#This Row],[管]],管[],2,TRUE), IF(NOT(ISBLANK(テーブル6[[#This Row],[許可区分（管）]])),\"D\",\"-\"))","v":"-"},{"$f":"IF(NOT(ISBLANK(テーブル6[[#This Row],[ほ装]])),VLOOKUP(テーブル6[[#This Row],[ほ装]],ほ装[],2,TRUE), IF(NOT(ISBLANK(テーブル6[[#This Row],[許可区分(ほ装)]])),\"D\",\"-\"))","v":"-"},{"$f":"IF(NOT(ISBLANK(テーブル6[[#This Row],[塗装]])),VLOOKUP(テーブル6[[#This Row],[塗装]],塗装[],2,TRUE), IF(NOT(ISBLANK(テーブル6[[#This Row],[許可区分（塗装）]])),\"D\",\"-\"))","v":"-"},{"$f":"IF(NOT(ISBLANK(テーブル6[[#This Row],[防水]])),VLOOKUP(テーブル6[[#This Row],[防水]],塗装[],2,TRUE), IF(NOT(ISBLANK(テーブル6[[#This Row],[許可区分（防水）]])),\"D\",\"-\"))","v":"-"},{"$f":"IF(NOT(ISBLANK(テーブル6[[#This Row],[機械器具設置]])),VLOOKUP(テーブル6[[#This Row],[機械器具設置]],塗装[],2,TRUE), IF(NOT(ISBLANK(テーブル6[[#This Row],[許可区分（機械器具）]])),\"D\",\"-\"))","v":"-"},{"$f":"IF(NOT(ISBLANK(テーブル6[[#This Row],[電気通信]])),VLOOKUP(テーブル6[[#This Row],[電気通信]],電気[],2,TRUE), IF(NOT(ISBLANK(テーブル6[[#This Row],[許可区分(電気)]])),\"D\",\"-\"))","v":"-"},{"$f":"IF(NOT(ISBLANK(テーブル6[[#This Row],[水道施設]])),VLOOKUP(テーブル6[[#This Row],[水道施設]],水道[],2,TRUE), IF(NOT(ISBLANK(テーブル6[[#This Row],[許可区分（水道施設）]])),\"D\",\"-\"))","v":"-"}]
[16,"管内","本田ポンプ店","匝瑳市八日市場イ2318","本田　志夫","0479-72-2571","0479-73-6271","一般",null,null,null,null,null,"一般",null,null,null,null,null,null,null,null,null,null,null,null,null,"-",{"$f":"IF(NOT(ISBLANK(テーブル6[[#This Row],[建築一式]])),VLOOKUP(テーブル6[[#This Row],[建築一式]],建築[],2,TRUE), IF(NOT(ISBLANK(テーブル6[[#This Row],[許可区分（建築）]])),\"D\",\"-\"))","v":"-"},{"$f":"IF(NOT(ISBLANK(テーブル6[[#This Row],[電気]])),VLOOKUP(テーブル6[[#This Row],[電気]],電気[],2,TRUE), IF(NOT(ISBLANK(テーブル6[[#This Row],[許可区分（電気）]])),\"D\",\"-\"))","v":"-"},"-",{"$f":"IF(NOT(ISBLANK(テーブル6[[#This Row],[ほ装]])),VLOOKUP(テーブル6[[#This Row],[ほ装]],ほ装[],2,TRUE), IF(NOT(ISBLANK(テーブル6[[#This Row],[許可区分(ほ装)]])),\"D\",\"-\"))","v":"-"},{"$f":"IF(NOT(ISBLANK(テーブル6[[#This Row],[塗装]])),VLOOKUP(テーブル6[[#This Row],[塗装]],塗装[],2,TRUE), IF(NOT(ISBLANK(テーブル6[[#This Row],[許可区分（塗装）]])),\"D\",\"-\"))","v":"-"},{"$f":"IF(NOT(ISBLANK(テーブル6[[#This Row],[防水]])),VLOOKUP(テーブル6[[#This Row],[防水]],塗装[],2,TRUE), IF(NOT(ISBLANK(テーブル6[[#This Row],[許可区分（防水）]])),\"D\",\"-\"))","v":"-"},{"$f":"IF(NOT(ISBLANK(テーブル6[[#This Row],[機械器具設置]])),VLOOKUP(テーブル6[[#This Row],[機械器具設置]],塗装[],2,TRUE), IF(NOT(ISBLANK(テーブル6[[#This Row],[許可区分（機械器具）]])),\"D\",\"-\"))","v":"-"},{"$f":"IF(NOT(ISBLANK(テーブル6[[#This Row],[電気通信]])),VLOOKUP(テーブル6[[#This Row],[電気通信]],電気[],2,TRUE), IF(NOT(ISBLANK(テーブル6[[#This Row],[許可区分(電気)]])),\"D\",\"-\"))","v":"-"},{"$f":"IF(NOT(ISBLANK(テーブル6[[#This Row],[水道施設]])),VLOOKUP(テーブル6[[#This Row],[水道施設]],水道[],2,TRUE), IF(NOT(ISBLANK(テーブル6[[#This Row],[許可区分（水道施設）]])),\"D\",\"-\"))","v":"-"}]
[17,"管内","株式会社松伊燃料店","匝瑳市八日市場イ2493","片岡　勝美","0479-72-0147","0479-73-2286",null,null,null,null,null,null,"一般",null,null,null,null,null,null,null,null,null,null,null,null,null,{"$f":"IF(NOT(ISBLANK(テーブル6[[#This Row],[土木一式]])),VLOOKUP(テーブル6[[#This Row],[土木一式]],土木[],2,TRUE), IF(NOT(ISBLANK(テーブル6[[#This Row],[許可区分(土木)]])),\"D\",\"-\"))","v":"-"},{"$f":"IF(NOT(ISBLANK(テーブル6[[#This Row],[建築一式]])),VLOOKUP(テーブル6[[#This Row],[建築一式]],建築[],2,TRUE), IF(NOT(ISBLANK(テーブル6[[#This Row],[許可区分（建築）]])),\"D\",\"-\"))","v":"-"},{"$f":"IF(NOT(ISBLANK(テーブル6[[#This Row],[電気]])),VLOOKUP(テーブル6[[#This Row],[電気]],電気[],2,TRUE), IF(NOT(ISBLANK(テーブル6[[#This Row],[許可区分（電気）]])),\"D\",\"-\"))","v":"-"},"-",{"$f":"IF(NOT(ISBLANK(テーブル6[[#This Row],[ほ装]])),VLOOKUP(テーブル6[[#This Row],[ほ装]],ほ装[],2,TRUE), IF(NOT(ISBLANK(テーブル6[[#This Row],[許可区分(ほ装)]])),\"D\",\"-\"))","v":"-"},{"$f":"IF(NOT(ISBLANK(テーブル6[[#This Row],[塗装]])),VLOOKUP(テーブル6[[#This Row],[塗装]],塗装[],2,TRUE), IF(NOT(ISBLANK(テーブル6[[#This Row],[許可区分（塗装）]])),\"D\",\"-\"))","v":"-"},{"$f":"IF(NOT(ISBLANK(テーブル6[[#This Row],[防水]])),VLOOKUP(テーブル6[[#This Row],[防水]],塗装[],2,TRUE), IF(NOT(ISBLANK(テーブル6[[#This Row],[許可区分（防水）]])),\"D\",\"-\"))","v":"-"},{"$f":"IF(NOT(ISBLANK(テーブル6[[#This Row],[機械器具設置]])),VLOOKUP(テーブル6[[#This Row],[機械器具設置]],塗装[],2,TRUE), IF(NOT(ISBLANK(テーブル6[[#This Row],[許可区分（機械器具）]])),\"D\",\"-\"))","v":"-"},{"$f":"IF(NOT(ISBLANK(テーブル6[[#This Row],[電気通信]])),VLOOKUP(テーブル6[[#This Row],[電気通信]],電気[],2,TRUE), IF(NOT(ISBLANK(テーブル6[[#This Row],[許可区分(電気)]])),\"D\",\"-\"))","v":"-"},{"$f":"IF(NOT(ISBLANK(テーブル6[[#This Row],[水道施設]])),VLOOKUP(テーブル6[[#This Row],[水道施設]],水道[],2,TRUE), IF(NOT(ISBLANK(テーブル6[[#This Row],[許可区分（水道施設）]])),\"D\",\"-\"))","v":"-"}]
[18,"管内","有限会社秋葉設備","匝瑳市野手16925","秋葉　浩","0479-67-2849","0479-67-2852",null,null,null,null,null,null,"一般",null,null,null,null,null,null,null,null,null,null,null,null,null,{"$f":"IF(NOT(ISBLANK(テーブル6[[#This Row],[土木一式]])),VLOOKUP(テーブル6[[#This Row],[土木一式]],土木[],2,TRUE), IF(NOT(ISBLANK(テーブル6[[#This Row],[許可区分(土木)]])),\"D\",\"-\"))","v":"-"},{"$f":"IF(NOT(ISBLANK(テーブル6[[#This Row],[建築一式]])),VLOOKUP(テーブル6[[#This Row],[建築一式]],建築[],2,TRUE), IF(NOT(ISBLANK(テーブル6[[#This Row],[許可区分（建築）]])),\"D\",\"-\"))","v":"-"},{"$f":"IF(NOT(ISBLANK(テーブル6[[#This Row],[電気]])),VLOOKUP(テーブル6[[#This Row],[電気]],電気[],2,TRUE), IF(NOT(ISBLANK(テーブル6[[#This Row],[許可区分（電気）]])),\"D\",\"-\"))","v":"-"},"-",{"$f":"IF(NOT(ISBLANK(テーブル6[[#This Row],[ほ装]])),VLOOKUP(テーブル6[[#This Row],[ほ装]],ほ装[],2,TRUE), IF(NOT(ISBLANK(テーブル6[[#This Row],[許可区分(ほ装)]])),\"D\",\"-\"))","v":"-"},{"$f":"IF(NOT(ISBLANK(テーブル6[[#This Row],[塗装]])),VLOOKUP(テーブル6[[#This Row],[塗装]],塗装[],2,TRUE), IF(NOT(ISBLANK(テーブル6[[#This Row],[許可区分（塗装）]])),\"D\",\"-\"))","v":"-"},{"$f":"IF(NOT(ISBLANK(テーブル6[[#This Row],[防水]])),VLOOKUP(テーブル6[[#This Row],[防水]],塗装[],2,TRUE), IF(NOT(ISBLANK(テーブル6[[#This Row],[許可区分（防水）]])),\"D\",\"-\"))","v":"-"},{"$f":"IF(NOT(ISBLANK(テーブル6[[#This Row],[機械器具設置]])),VLOOKUP(テーブル6[[#This Row],[機械器具設置]],塗装[],2,TRUE), IF(NOT(ISBLANK(テーブル6[[#This Row],[許可区分（機械器具）]])),\"D\",\"-\"))","v":"-"},{"$f":"IF(NOT(ISBLANK(テーブル6[[#This Row],[電気通信]])),VLOOKUP(テーブル6[[#This Row],[電気通信]],電気[],2,TRUE), IF(NOT(ISBLANK(テーブル6[[#This Row],[許可区分(電気)]])),\"D\",\"-\"))","v":"-"},{"$f":"IF(NOT(ISBLANK(テーブル6[[#This Row],[水道施設]])),VLOOKUP(テーブル6[[#This Row],[水道施設]],水道[],2,TRUE), IF(NOT(ISBLANK(テーブル6[[#This Row],[許可区分（水道施設）]])),\"D\",\"-\"))","v":"-"}]
[19,"管内","株式会社畔蒜工務店","山武郡横芝光町木戸10110番地","畔蒜　義文","0479-84-1221","0479-84-0179","特定",1162,"特定",1222,"特定",894,"特定",908,"特定",1063,"特定",832,"特定",839,null,null,null,null,"特定",957,{"$f":"IF(NOT(ISBLANK(テーブル6[[#This Row],[土木一式]])),VLOOKUP(テーブル6[[#This Row],[土木一式]],土木[],2,TRUE), IF(NOT(ISBLANK(テーブル6[[#This Row],[許可区分(土木)]])),\"D\",\"-\"))","v":"A"},{"$f":"IF(NOT(ISBLANK(テーブル6[[#This Row],[建築一式]])),VLOOKUP(テーブル6[[#This Row],[建築一式]],建築[],2,TRUE), IF(NOT(ISBLANK(テーブル6[[#This Row],[許可区分（建築）]])),\"D\",\"-\"))","v":"A"},{"$f":"IF(NOT(ISBLANK(テーブル6[[#This Row],[電気]])),VLOOKUP(テーブル6[[#This Row],[電気]],電気[],2,TRUE), IF(NOT(ISBLANK(テーブル6[[#This Row],[許可区分（電気）]])),\"D\",\"-\"))","v":"A"},{"$f":"IF(NOT(ISBLANK(テーブル6[[#This Row],[管]])),VLOOKUP(テーブル6[[#This Row],[管]],管[],2,TRUE), IF(NOT(ISBLANK(テーブル6[[#This Row],[許可区分（管）]])),\"D\",\"-\"))","v":"A"},{"$f":"IF(NOT(ISBLANK(テーブル6[[#This Row],[ほ装]])),VLOOKUP(テーブル6[[#This Row],[ほ装]],ほ装[],2,TRUE), IF(NOT(ISBLANK(テーブル6[[#This Row],[許可区分(ほ装)]])),\"D\",\"-\"))","v":"A"},{"$f":"IF(NOT(ISBLANK(テーブル6[[#This Row],[塗装]])),VLOOKUP(テーブル6[[#This Row],[塗装]],塗装[],2,TRUE), IF(NOT(ISBLANK(テーブル6[[#This Row],[許可区分（塗装）]])),\"D\",\"-\"))","v":"A"},{"$f":"IF(NOT(ISBLANK(テーブル6[[#This Row],[防水]])),VLOOKUP(テーブル6[[#This Row],[防水]],塗装[],2,TRUE), IF(NOT(ISBLANK(テーブル6[[#This Row],[許可区分（防水）]])),\"D\",\"-\"))","v":"A"},{"$f":"IF(NOT(ISBLANK(テーブル6[[#This Row],[機械器具設置]])),VLOOKUP(テーブル6[[#This Row],[機械器具設置]],塗装[],2,TRUE), IF(NOT(ISBLANK(テーブル6[[#This Row],[許可区分（機械器具）]])),\"D\",\"-\"))","v":"-"},{"$f":"IF(NOT(ISBLANK(テーブル6[[#This Row],[電気通信]])),VLOOKUP(テーブル6[[#This Row],[電気通信]],電気[],2,TRUE), IF(NOT(ISBLANK(テーブル6[[#This Row],[許可区分(電気)]])),\"D\",\"-\"))","v":"-"},{"$f":"IF(NOT(ISBLANK(テーブル6[[#This Row],[水道施設]])),VLOOKUP(テーブル6[[#This Row],[水道施設]],水道[],2,TRUE), IF(NOT(ISBLANK(テーブル6[[#This Row],[許可区分（水道施設）]])),\"D\",\"-\"))","v":"A"}]
[20,"管内","株式会社プレスト","匝瑳市八日市場ハの725-1","林　光宏","0479-72-3312","0479-72-3351","一般",809,"一般",661,null,null,null,null,"一般",762,null,null,null,null,null,null,null,null,null,null,{"$f":"IF(NOT(ISBLANK(テーブル6[[#This Row],[土木一式]])),VLOOKUP(テーブル6[[#This Row],[土木一式]],土木[],2,TRUE), IF(NOT(ISBLANK(テーブル6[[#This Row],[許可区分(土木)]])),\"D\",\"-\"))","v":"A"},{"$f":"IF(NOT(ISBLANK(テーブル6[[#This Row],[建築一式]])),VLOOKUP(テーブル6[[#This Row],[建築一式]],建築[],2,TRUE), IF(NOT(ISBLANK(テーブル6[[#This Row],[許可区分（建築）]])),\"D\",\"-\"))","v":"C"},{"$f":"IF(NOT(ISBLANK(テーブル6[[#This Row],[電気]])),VLOOKUP(テーブル6[[#This Row],[電気]],電気[],2,TRUE), IF(NOT(ISBLANK(テーブル6[[#This Row],[許可区分（電気）]])),\"D\",\"-\"))","v":"-"},{"$f":"IF(NOT(ISBLANK(テーブル6[[#This Row],[管]])),VLOOKUP(テーブル6[[#This Row],[管]],管[],2,TRUE), IF(NOT(ISBLANK(テーブル6[[#This Row],[許可区分（管）]])),\"D\",\"-\"))","v":"-"},{"$f":"IF(NOT(ISBLANK(テーブル6[[#This Row],[ほ装]])),VLOOKUP(テーブル6[[#This Row],[ほ装]],ほ装[],2,TRUE), IF(NOT(ISBLANK(テーブル6[[#This Row],[許可区分(ほ装)]])),\"D\",\"-\"))","v":"A"},{"$f":"IF(NOT(ISBLANK(テーブル6[[#This Row],[塗装]])),VLOOKUP(テーブル6[[#This Row],[塗装]],塗装[],2,TRUE), IF(NOT(ISBLANK(テーブル6[[#This Row],[許可区分（塗装）]])),\"D\",\"-\"))","v":"-"},{"$f":"IF(NOT(ISBLANK(テーブル6[[#This Row],[防水]])),VLOOKUP(テーブル6[[#This Row],[防水]],塗装[],2,TRUE), IF(NOT(ISBLANK(テーブル6[[#This Row],[許可区分（防水）]])),\"D\",\"-\"))","v":"-"},{"$f":"IF(NOT(ISBLANK(テーブル6[[#This Row],[機械器具設置]])),VLOOKUP(テーブル6[[#This Row],[機械器具設置]],塗装[],2,TRUE), IF(NOT(ISBLANK(テーブル6[[#This Row],[許可区分（機械器具）]])),\"D\",\"-\"))","v":"-"},{"$f":"IF(NOT(ISBLANK(テーブル6[[#This Row],[電気通信]])),VLOOKUP(テーブル6[[#This Row],[電気通信]],電気[],2,TRUE), IF(NOT(ISBLANK(テーブル6[[#This Row],[許可区分(電気)]])),\"D\",\"-\"))","v":"-"},{"$f":"IF(NOT(ISBLANK(テーブル6[[#This Row],[水道施設]])),VLOOKUP(テーブル6[[#This Row],[水道施設]],水道[],2,TRUE), IF(NOT(ISBLANK(テーブル6[[#This Row],[許可区分（水道施設）]])),\"D\",\"-\"))","v":"-"}]
[21,"管内","有限会社伊東設備","匝瑳市野手17146-545","伊東　英之","0479-67-3324","0479-67-5436",null,null,null,null,null,null,"一般",null,null,null,null,null,null,null,null,null,null,null,null,null,{"$f":"IF(NOT(ISBLANK(テーブル6[[#This Row],[土木一式]])),VLOOKUP(テーブル6[[#This Row],[土木一式]],土木[],2,TRUE), IF(NOT(ISBLANK(テーブル6[[#This Row],[許可区分(土木)]])),\"D\",\"-\"))","v":"-"},{"$f":"IF(NOT(ISBLANK(テーブル6[[#This Row],[建築一式]])),VLOOKUP(テーブル6[[#This Row],[建築一式]],建築[],2,TRUE), IF(NOT(ISBLANK(テーブル6[[#This Row],[許可区分（建築）]])),\"D\",\"-\"))","v":"-"},{"$f":"IF(NOT(ISBLANK(テーブル6[[#This Row],[電気]])),VLOOKUP(テーブル6[[#This Row],[電気]],電気[],2,TRUE), IF(NOT(ISBLANK(テーブル6[[#This Row],[許可区分（電気）]])),\"D\",\"-\"))","v":"-"},"-",{"$f":"IF(NOT(ISBLANK(テーブル6[[#This Row],[ほ装]])),VLOOKUP(テーブル6[[#This Row],[ほ装]],ほ装[],2,TRUE), IF(NOT(ISBLANK(テーブル6[[#This Row],[許可区分(ほ装)]])),\"D\",\"-\"))","v":"-"},{"$f":"IF(NOT(ISBLANK(テーブル6[[#This Row],[塗装]])),VLOOKUP(テーブル6[[#This Row],[塗装]],塗装[],2,TRUE), IF(NOT(ISBLANK(テーブル6[[#This Row],[許可区分（塗装）]])),\"D\",\"-\"))","v":"-"},{"$f":"IF(NOT(ISBLANK(テーブル6[[#This Row],[防水]])),VLOOKUP(テーブル6[[#This Row],[防水]],塗装[],2,TRUE), IF(NOT(ISBLANK(テーブル6[[#This Row],[許可区分（防水）]])),\"D\",\"-\"))","v":"-"},{"$f":"IF(NOT(ISBLANK(テーブル6[[#This Row],[機械器具設置]])),VLOOKUP(テーブル6[[#This Row],[機械器具設置]],塗装[],2,TRUE), IF(NOT(ISBLANK(テーブル6[[#This Row],[許可区分（機械器具）]])),\"D\",\"-\"))","v":"-"},{"$f":"IF(NOT(ISBLANK(テーブル6[[#This Row],[電気通信]])),VLOOKUP(テーブル6[[#This Row],[電気通信]],電気[],2,TRUE), IF(NOT(ISBLANK(テーブル6[[#This Row],[許可区分(電気)]])),\"D\",\"-\"))","v":"-"},{"$f":"IF(NOT(ISBLANK(テーブル6[[#This Row],[水道施設]])),VLOOKUP(テーブル6[[#This Row],[水道施設]],水道[],2,TRUE), IF(NOT(ISBLANK(テーブル6[[#This Row],[許可区分（水道施設）]])),\"D\",\"-\"))","v":"-"}]
[22,"管内","日栄建設株式会社","匝瑳市川辺4357番地1","林　庸雄","0479-67-3431","0479-67-3432","特定",898,null,null,null,null,null,null,"特定",888,null,null,null,null,null,null,null,null,null,null,{"$f":"IF(NOT(ISBLANK(テーブル6[[#This Row],[土木一式]])),VLOOKUP(テーブル6[[#This Row],[土木一式]],土木[],2,TRUE), IF(NOT(ISBLANK(テーブル6[[#This Row],[許可区分(土木)]])),\"D\",\"-\"))","v":"A"},{"$f":"IF(NOT(ISBLANK(テーブル6[[#This Row],[建築一式]])),VLOOKUP(テーブル6[[#This Row],[建築一式]],建築[],2,TRUE), IF(NOT(ISBLANK(テーブル6[[#This Row],[許可区分（建築）]])),\"D\",\"-\"))","v":"-"},{"$f":"IF(NOT(ISBLANK(テーブル6[[#This Row],[電気]])),VLOOKUP(テーブル6[[#This Row],[電気]],電気[],2,TRUE), IF(NOT(ISBLANK(テーブル6[[#This Row],[許可区分（電気）]])),\"D\",\"-\"))","v":"-"},{"$f":"IF(NOT(ISBLANK(テーブル6[[#This Row],[管]])),VLOOKUP(テーブル6[[#This Row],[管]],管[],2,TRUE), IF(NOT(ISBLANK(テーブル6[[#This Row],[許可区分（管）]])),\"D\",\"-\"))","v":"-"},{"$f":"IF(NOT(ISBLANK(テーブル6[[#This Row],[ほ装]])),VLOOKUP(テーブル6[[#This Row],[ほ装]],ほ装[],2,TRUE), IF(NOT(ISBLANK(テーブル6[[#This Row],[許可区分(ほ装)]])),\"D\",\"-\"))","v":"A"},{"$f":"IF(NOT(ISBLANK(テーブル6[[#This Row],[塗装]])),VLOOKUP(テーブル6[[#This Row],[塗装]],塗装[],2,TRUE), IF(NOT(ISBLANK(テーブル6[[#This Row],[許可区分（塗装）]])),\"D\",\"-\"))","v":"-"},{"$f":"IF(NOT(ISBLANK(テーブル6[[#This Row],[防水]])),VLOOKUP(テーブル6[[#This Row],[防水]],塗装[],2,TRUE), IF(NOT(ISBLANK(テーブル6[[#This Row],[許可区分（防水）]])),\"D\",\"-\"))","v":"-"},{"$f":"IF(NOT(ISBLANK(テーブル6[[#This Row],[機械器具設置]])),VLOOKUP(テーブル6[[#This Row],[機械器具設置]],塗装[],2,TRUE), IF(NOT(ISBLANK(テーブル6[[#This Row],[許可区分（機械器具）]])),\"D\",\"-\"))","v":"-"},{"$f":"IF(NOT(ISBLANK(テーブル6[[#This Row],[電気通信]])),VLOOKUP(テーブル6[[#This Row],[電気通信]],電気[],2,TRUE), IF(NOT(ISBLANK(テーブル6[[#This Row],[許可区分(電気)]])),\"D\",\"-\"))","v":"-"},{"$f":"IF(NOT(ISBLANK(テーブル6[[#This Row],[水道施設]])),VLOOKUP(テーブル6[[#This Row],[水道施設]],水道[],2,TRUE), IF(NOT(ISBLANK(テーブル6[[#This Row],[許可区分（水道施設）]])),\"D\",\"-\"))","v":"-"}]
[23,"管内","株式会社鈴木組","匝瑳市栢田7952-69","土屋　昌利","0479-67-2075","0479-67-5215","特定",880,null,null,null,null,null,null,"特定",841,null,null,null,null,null,null,null,null,"特定",752,{"$f":"IF(NOT(ISBLANK(テーブル6[[#This Row],[土木一式]])),VLOOKUP(テーブル6[[#This Row],[土木一式]],土木[],2,TRUE), IF(NOT(ISBLANK(テーブル6[[#This Row],[許可区分(土木)]])),\"D\",\"-\"))","v":"A"},{"$f":"IF(NOT(ISBLANK(テーブル6[[#This Row],[建築一式]])),VLOOKUP(テーブル6[[#This Row],[建築一式]],建築[],2,TRUE), IF(NOT(ISBLANK(テーブル6[[#This Row],[許可区分（建築）]])),\"D\",\"-\"))","v":"-"},{"$f":"IF(NOT(ISBLANK(テーブル6[[#This Row],[電気]])),VLOOKUP(テーブル6[[#This Row],[電気]],電気[],2,TRUE), IF(NOT(ISBLANK(テーブル6[[#This Row],[許可区分（電気）]])),\"D\",\"-\"))","v":"-"},{"$f":"IF(NOT(ISBLANK(テーブル6[[#This Row],[管]])),VLOOKUP(テーブル6[[#This Row],[管]],管[],2,TRUE), IF(NOT(ISBLANK(テーブル6[[#This Row],[許可区分（管）]])),\"D\",\"-\"))","v":"-"},{"$f":"IF(NOT(ISBLANK(テーブル6[[#This Row],[ほ装]])),VLOOKUP(テーブル6[[#This Row],[ほ装]],ほ装[],2,TRUE), IF(NOT(ISBLANK(テーブル6[[#This Row],[許可区分(ほ装)]])),\"D\",\"-\"))","v":"A"},{"$f":"IF(NOT(ISBLANK(テーブル6[[#This Row],[塗装]])),VLOOKUP(テーブル6[[#This Row],[塗装]],塗装[],2,TRUE), IF(NOT(ISBLANK(テーブル6[[#This Row],[許可区分（塗装）]])),\"D\",\"-\"))","v":"-"},{"$f":"IF(NOT(ISBLANK(テーブル6[[#This Row],[防水]])),VLOOKUP(テーブル6[[#This Row],[防水]],塗装[],2,TRUE), IF(NOT(ISBLANK(テーブル6[[#This Row],[許可区分（防水）]])),\"D\",\"-\"))","v":"-"},{"$f":"IF(NOT(ISBLANK(テーブル6[[#This Row],[機械器具設置]])),VLOOKUP(テーブル6[[#This Row],[機械器具設置]],塗装[],2,TRUE), IF(NOT(ISBLANK(テーブル6[[#This Row],[許可区分（機械器具）]])),\"D\",\"-\"))","v":"-"},{"$f":"IF(NOT(ISBLANK(テーブル6[[#This Row],[電気通信]])),VLOOKUP(テーブル6[[#This Row],[電気通信]],電気[],2,TRUE), IF(NOT(ISBLANK(テーブル6[[#This Row],[許可区分(電気)]])),\"D\",\"-\"))","v":"-"},{"$f":"IF(NOT(ISBLANK(テーブル6[[#This Row],[水道施設]])),VLOOKUP(テーブル6[[#This Row],[水道施設]],水道[],2,TRUE), IF(NOT(ISBLANK(テーブル6[[#This Row],[許可区分（水道施設）]])),\"D\",\"-\"))","v":"B"}]
[24,"管内","有限会社山石工業","匝瑳市堀川6225番地1","江波戸　正文","0479-67-5212","0479-67-5217","一般",807,null,null,null,null,null,null,"一般",770,null,null,null,null,null,null,null,null,null,null,{"$f":"IF(NOT(ISBLANK(テーブル6[[#This Row],[土木一式]])),VLOOKUP(テーブル6[[#This Row],[土木一式]],土木[],2,TRUE), IF(NOT(ISBLANK(テーブル6[[#This Row],[許可区分(土木)]])),\"D\",\"-\"))","v":"A"},{"$f":"IF(NOT(ISBLANK(テーブル6[[#This Row],[建築一式]])),VLOOKUP(テーブル6[[#This Row],[建築一式]],建築[],2,TRUE), IF(NOT(ISBLANK(テーブル6[[#This Row],[許可区分（建築）]])),\"D\",\"-\"))","v":"-"},{"$f":"IF(NOT(ISBLANK(テーブル6[[#This Row],[電気]])),VLOOKUP(テーブル6[[#This Row],[電気]],電気[],2,TRUE), IF(NOT(ISBLANK(テーブル6[[#This Row],[許可区分（電気）]])),\"D\",\"-\"))","v":"-"},{"$f":"IF(NOT(ISBLANK(テーブル6[[#This Row],[管]])),VLOOKUP(テーブル6[[#This Row],[管]],管[],2,TRUE), IF(NOT(ISBLANK(テーブル6[[#This Row],[許可区分（管）]])),\"D\",\"-\"))","v":"-"},{"$f":"IF(NOT(ISBLANK(テーブル6[[#This Row],[ほ装]])),VLOOKUP(テーブル6[[#This Row],[ほ装]],ほ装[],2,TRUE), IF(NOT(ISBLANK(テーブル6[[#This Row],[許可区分(ほ装)]])),\"D\",\"-\"))","v":"A"},{"$f":"IF(NOT(ISBLANK(テーブル6[[#This Row],[塗装]])),VLOOKUP(テーブル6[[#This Row],[塗装]],塗装[],2,TRUE), IF(NOT(ISBLANK(テーブル6[[#This Row],[許可区分（塗装）]])),\"D\",\"-\"))","v":"-"},{"$f":"IF(NOT(ISBLANK(テーブル6[[#This Row],[防水]])),VLOOKUP(テーブル6[[#This Row],[防水]],塗装[],2,TRUE), IF(NOT(ISBLANK(テーブル6[[#This Row],[許可区分（防水）]])),\"D\",\"-\"))","v":"-"},{"$f":"IF(NOT(ISBLANK(テーブル6[[#This Row],[機械器具設置]])),VLOOKUP(テーブル6[[#This Row],[機械器具設置]],塗装[],2,TRUE), IF(NOT(ISBLANK(テーブル6[[#This Row],[許可区分（機械器具）]])),\"D\",\"-\"))","v":"-"},{"$f":"IF(NOT(ISBLANK(テーブル6[[#This Row],[電気通信]])),VLOOKUP(テーブル6[[#This Row],[電気通信]],電気[],2,TRUE), IF(NOT(ISBLANK(テーブル6[[#This Row],[許可区分(電気)]])),\"D\",\"-\"))","v":"-"},{"$f":"IF(NOT(ISBLANK(テーブル6[[#This Row],[水道施設]])),VLOOKUP(テーブル6[[#This Row],[水道施設]],水道[],2,TRUE), IF(NOT(ISBLANK(テーブル6[[#This Row],[許可区分（水道施設）]])),\"D\",\"-\"))","v":"-"}]
[25,"管内","有限会社加瀬建設","山武郡横芝光町原方1088番地の1","加瀬　正義","0479-84-1824","0479-84-2663","一般",712,"一般",614,null,null,null,null,"一般",645,null,null,null,null,null,null,null,null,"一般",612,{"$f":"IF(NOT(ISBLANK(テーブル6[[#This Row],[土木一式]])),VLOOKUP(テーブル6[[#This Row],[土木一式]],土木[],2,TRUE), IF(NOT(ISBLANK(テーブル6[[#This Row],[許可区分(土木)]])),\"D\",\"-\"))","v":"B"},{"$f":"IF(NOT(ISBLANK(テーブル6[[#This Row],[建築一式]])),VLOOKUP(テーブル6[[#This Row],[建築一式]],建築[],2,TRUE), IF(NOT(ISBLANK(テーブル6[[#This Row],[許可区分（建築）]])),\"D\",\"-\"))","v":"C"},{"$f":"IF(NOT(ISBLANK(テーブル6[[#This Row],[電気]])),VLOOKUP(テーブル6[[#This Row],[電気]],電気[],2,TRUE), IF(NOT(ISBLANK(テーブル6[[#This Row],[許可区分（電気）]])),\"D\",\"-\"))","v":"-"},{"$f":"IF(NOT(ISBLANK(テーブル6[[#This Row],[管]])),VLOOKUP(テーブル6[[#This Row],[管]],管[],2,TRUE), IF(NOT(ISBLANK(テーブル6[[#This Row],[許可区分（管）]])),\"D\",\"-\"))","v":"-"},{"$f":"IF(NOT(ISBLANK(テーブル6[[#This Row],[ほ装]])),VLOOKUP(テーブル6[[#This Row],[ほ装]],ほ装[],2,TRUE), IF(NOT(ISBLANK(テーブル6[[#This Row],[許可区分(ほ装)]])),\"D\",\"-\"))","v":"B"},{"$f":"IF(NOT(ISBLANK(テーブル6[[#This Row],[塗装]])),VLOOKUP(テーブル6[[#This Row],[塗装]],塗装[],2,TRUE), IF(NOT(ISBLANK(テーブル6[[#This Row],[許可区分（塗装）]])),\"D\",\"-\"))","v":"-"},{"$f":"IF(NOT(ISBLANK(テーブル6[[#This Row],[防水]])),VLOOKUP(テーブル6[[#This Row],[防水]],塗装[],2,TRUE), IF(NOT(ISBLANK(テーブル6[[#This Row],[許可区分（防水）]])),\"D\",\"-\"))","v":"-"},{"$f":"IF(NOT(ISBLANK(テーブル6[[#This Row],[機械器具設置]])),VLOOKUP(テーブル6[[#This Row],[機械器具設置]],塗装[],2,TRUE), IF(NOT(ISBLANK(テーブル6[[#This Row],[許可区分（機械器具）]])),\"D\",\"-\"))","v":"-"},{"$f":"IF(NOT(ISBLANK(テーブル6[[#This Row],[電気通信]])),VLOOKUP(テーブル6[[#This Row],[電気通信]],電気[],2,TRUE), IF(NOT(ISBLANK(テーブル6[[#This Row],[許可区分(電気)]])),\"D\",\"-\"))","v":"-"},{"$f":"IF(NOT(ISBLANK(テーブル6[[#This Row],[水道施設]])),VLOOKUP(テーブル6[[#This Row],[水道施設]],水道[],2,TRUE), IF(NOT(ISBLANK(テーブル6[[#This Row],[許可区分（水道施設）]])),\"D\",\"-\"))","v":"C"}]
[26,"管内","有限会社椎名土木","匝瑳市堀川3624","椎名　利臣","0479-67-1578","0479-67-1579","特定",862,null,null,null,null,null,null,"特定",760,null,null,null,null,null,null,null,null,"特定",688,{"$f":"IF(NOT(ISBLANK(テーブル6[[#This Row],[土木一式]])),VLOOKUP(テーブル6[[#This Row],[土木一式]],土木[],2,TRUE), IF(NOT(ISBLANK(テーブル6[[#This Row],[許可区分(土木)]])),\"D\",\"-\"))","v":"A"},{"$f":"IF(NOT(ISBLANK(テーブル6[[#This Row],[建築一式]])),VLOOKUP(テーブル6[[#This Row],[建築一式]],建築[],2,TRUE), IF(NOT(ISBLANK(テーブル6[[#This Row],[許可区分（建築）]])),\"D\",\"-\"))","v":"-"},{"$f":"IF(NOT(ISBLANK(テーブル6[[#This Row],[電気]])),VLOOKUP(テーブル6[[#This Row],[電気]],電気[],2,TRUE), IF(NOT(ISBLANK(テーブル6[[#This Row],[許可区分（電気）]])),\"D\",\"-\"))","v":"-"},{"$f":"IF(NOT(ISBLANK(テーブル6[[#This Row],[管]])),VLOOKUP(テーブル6[[#This Row],[管]],管[],2,TRUE), IF(NOT(ISBLANK(テーブル6[[#This Row],[許可区分（管）]])),\"D\",\"-\"))","v":"-"},{"$f":"IF(NOT(ISBLANK(テーブル6[[#This Row],[ほ装]])),VLOOKUP(テーブル6[[#This Row],[ほ装]],ほ装[],2,TRUE), IF(NOT(ISBLANK(テーブル6[[#This Row],[許可区分(ほ装)]])),\"D\",\"-\"))","v":"A"},{"$f":"IF(NOT(ISBLANK(テーブル6[[#This Row],[塗装]])),VLOOKUP(テーブル6[[#This Row],[塗装]],塗装[],2,TRUE), IF(NOT(ISBLANK(テーブル6[[#This Row],[許可区分（塗装）]])),\"D\",\"-\"))","v":"-"},{"$f":"IF(NOT(ISBLANK(テーブル6[[#This Row],[防水]])),VLOOKUP(テーブル6[[#This Row],[防水]],塗装[],2,TRUE), IF(NOT(ISBLANK(テーブル6[[#This Row],[許可区分（防水）]])),\"D\",\"-\"))","v":"-"},{"$f":"IF(NOT(ISBLANK(テーブル6[[#This Row],[機械器具設置]])),VLOOKUP(テーブル6[[#This Row],[機械器具設置]],塗装[],2,TRUE), IF(NOT(ISBLANK(テーブル6[[#This Row],[許可区分（機械器具）]])),\"D\",\"-\"))","v":"-"},{"$f":"IF(NOT(ISBLANK(テーブル6[[#This Row],[電気通信]])),VLOOKUP(テーブル6[[#This Row],[電気通信]],電気[],2,TRUE), IF(NOT(ISBLANK(テーブル6[[#This Row],[許可区分(電気)]])),\"D\",\"-\"))","v":"-"},{"$f":"IF(NOT(ISBLANK(テーブル6[[#This Row],[水道施設]])),VLOOKUP(テーブル6[[#This Row],[水道施設]],水道[],2,TRUE), IF(NOT(ISBLANK(テーブル6[[#This Row],[許可区分（水道施設）]])),\"D\",\"-\"))","v":"C"}]
[27,"管内","株式会社正貴組","匝瑳市飯倉台8-27","林　将光","0479-73-1783","0479-73-2662","一般",847,null,null,null,null,null,null,"一般",834,null,null,null,null,null,null,null,null,"特定",null,{"$f":"IF(NOT(ISBLANK(テーブル6[[#This Row],[土木一式]])),VLOOKUP(テーブル6[[#This Row],[土木一式]],土木[],2,TRUE), IF(NOT(ISBLANK(テーブル6[[#This Row],[許可区分(土木)]])),\"D\",\"-\"))","v":"A"},{"$f":"IF(NOT(ISBLANK(テーブル6[[#This Row],[建築一式]])),VLOOKUP(テーブル6[[#This Row],[建築一式]],建築[],2,TRUE), IF(NOT(ISBLANK(テーブル6[[#This Row],[許可区分（建築）]])),\"D\",\"-\"))","v":"-"},{"$f":"IF(NOT(ISBLANK(テーブル6[[#This Row],[電気]])),VLOOKUP(テーブル6[[#This Row],[電気]],電気[],2,TRUE), IF(NOT(ISBLANK(テーブル6[[#This Row],[許可区分（電気）]])),\"D\",\"-\"))","v":"-"},{"$f":"IF(NOT(ISBLANK(テーブル6[[#This Row],[管]])),VLOOKUP(テーブル6[[#This Row],[管]],管[],2,TRUE), IF(NOT(ISBLANK(テーブル6[[#This Row],[許可区分（管）]])),\"D\",\"-\"))","v":"-"},{"$f":"IF(NOT(ISBLANK(テーブル6[[#This Row],[ほ装]])),VLOOKUP(テーブル6[[#This Row],[ほ装]],ほ装[],2,TRUE), IF(NOT(ISBLANK(テーブル6[[#This Row],[許可区分(ほ装)]])),\"D\",\"-\"))","v":"A"},{"$f":"IF(NOT(ISBLANK(テーブル6[[#This Row],[塗装]])),VLOOKUP(テーブル6[[#This Row],[塗装]],塗装[],2,TRUE), IF(NOT(ISBLANK(テーブル6[[#This Row],[許可区分（塗装）]])),\"D\",\"-\"))","v":"-"},{"$f":"IF(NOT(ISBLANK(テーブル6[[#This Row],[防水]])),VLOOKUP(テーブル6[[#This Row],[防水]],塗装[],2,TRUE), IF(NOT(ISBLANK(テーブル6[[#This Row],[許可区分（防水）]])),\"D\",\"-\"))","v":"-"},{"$f":"IF(NOT(ISBLANK(テーブル6[[#This Row],[機械器具設置]])),VLOOKUP(テーブル6[[#This Row],[機械器具設置]],塗装[],2,TRUE), IF(NOT(ISBLANK(テーブル6[[#This Row],[許可区分（機械器具）]])),\"D\",\"-\"))","v":"-"},{"$f":"IF(NOT(ISBLANK(テーブル6[[#This Row],[電気通信]])),VLOOKUP(テーブル6[[#This Row],[電気通信]],電気[],2,TRUE), IF(NOT(ISBLANK(テーブル6[[#This Row],[許可区分(電気)]])),\"D\",\"-\"))","v":"-"},"-"]
[28,"管内","株式会社山清","匝瑳市堀ノ内318番地の3","勝股　隆雄","0479-74-1222","0479-74-1223","特定",885,null,null,null,null,null,null,"特定",787,"特定",null,null,null,null,null,null,null,"特定",705,{"$f":"IF(NOT(ISBLANK(テーブル6[[#This Row],[土木一式]])),VLOOKUP(テーブル6[[#This Row],[土木一式]],土木[],2,TRUE), IF(NOT(ISBLANK(テーブル6[[#This Row],[許可区分(土木)]])),\"D\",\"-\"))","v":"A"},{"$f":"IF(NOT(ISBLANK(テーブル6[[#This Row],[建築一式]])),VLOOKUP(テーブル6[[#This Row],[建築一式]],建築[],2,TRUE), IF(NOT(ISBLANK(テーブル6[[#This Row],[許可区分（建築）]])),\"D\",\"-\"))","v":"-"},{"$f":"IF(NOT(ISBLANK(テーブル6[[#This Row],[電気]])),VLOOKUP(テーブル6[[#This Row],[電気]],電気[],2,TRUE), IF(NOT(ISBLANK(テーブル6[[#This Row],[許可区分（電気）]])),\"D\",\"-\"))","v":"-"},{"$f":"IF(NOT(ISBLANK(テーブル6[[#This Row],[管]])),VLOOKUP(テーブル6[[#This Row],[管]],管[],2,TRUE), IF(NOT(ISBLANK(テーブル6[[#This Row],[許可区分（管）]])),\"D\",\"-\"))","v":"-"},{"$f":"IF(NOT(ISBLANK(テーブル6[[#This Row],[ほ装]])),VLOOKUP(テーブル6[[#This Row],[ほ装]],ほ装[],2,TRUE), IF(NOT(ISBLANK(テーブル6[[#This Row],[許可区分(ほ装)]])),\"D\",\"-\"))","v":"A"},"-",{"$f":"IF(NOT(ISBLANK(テーブル6[[#This Row],[防水]])),VLOOKUP(テーブル6[[#This Row],[防水]],塗装[],2,TRUE), IF(NOT(ISBLANK(テーブル6[[#This Row],[許可区分（防水）]])),\"D\",\"-\"))","v":"-"},{"$f":"IF(NOT(ISBLANK(テーブル6[[#This Row],[機械器具設置]])),VLOOKUP(テーブル6[[#This Row],[機械器具設置]],塗装[],2,TRUE), IF(NOT(ISBLANK(テーブル6[[#This Row],[許可区分（機械器具）]])),\"D\",\"-\"))","v":"-"},{"$f":"IF(NOT(ISBLANK(テーブル6[[#This Row],[電気通信]])),VLOOKUP(テーブル6[[#This Row],[電気通信]],電気[],2,TRUE), IF(NOT(ISBLANK(テーブル6[[#This Row],[許可区分(電気)]])),\"D\",\"-\"))","v":"-"},{"$f":"IF(NOT(ISBLANK(テーブル6[[#This Row],[水道施設]])),VLOOKUP(テーブル6[[#This Row],[水道施設]],水道[],2,TRUE), IF(NOT(ISBLANK(テーブル6[[#This Row],[許可区分（水道施設）]])),\"D\",\"-\"))","v":"B"}]
[29,"管内","株式会社オヨカワ設備工業","匝瑳市平木7886-1","及川　健蔵","0479-79-2707","0479-79-2707","一般",536,null,null,"一般",584,"一般",614,null,null,null,null,null,null,null,null,null,null,null,null,{"$f":"IF(NOT(ISBLANK(テーブル6[[#This Row],[土木一式]])),VLOOKUP(テーブル6[[#This Row],[土木一式]],土木[],2,TRUE), IF(NOT(ISBLANK(テーブル6[[#This Row],[許可区分(土木)]])),\"D\",\"-\"))","v":"D"},{"$f":"IF(NOT(ISBLANK(テーブル6[[#This Row],[建築一式]])),VLOOKUP(テーブル6[[#This Row],[建築一式]],建築[],2,TRUE), IF(NOT(ISBLANK(テーブル6[[#This Row],[許可区分（建築）]])),\"D\",\"-\"))","v":"-"},{"$f":"IF(NOT(ISBLANK(テーブル6[[#This Row],[電気]])),VLOOKUP(テーブル6[[#This Row],[電気]],電気[],2,TRUE), IF(NOT(ISBLANK(テーブル6[[#This Row],[許可区分（電気）]])),\"D\",\"-\"))","v":"D"},{"$f":"IF(NOT(ISBLANK(テーブル6[[#This Row],[管]])),VLOOKUP(テーブル6[[#This Row],[管]],管[],2,TRUE), IF(NOT(ISBLANK(テーブル6[[#This Row],[許可区分（管）]])),\"D\",\"-\"))","v":"B"},{"$f":"IF(NOT(ISBLANK(テーブル6[[#This Row],[ほ装]])),VLOOKUP(テーブル6[[#This Row],[ほ装]],ほ装[],2,TRUE), IF(NOT(ISBLANK(テーブル6[[#This Row],[許可区分(ほ装)]])),\"D\",\"-\"))","v":"-"},{"$f":"IF(NOT(ISBLANK(テーブル6[[#This Row],[塗装]])),VLOOKUP(テーブル6[[#This Row],[塗装]],塗装[],2,TRUE), IF(NOT(ISBLANK(テーブル6[[#This Row],[許可区分（塗装）]])),\"D\",\"-\"))","v":"-"},{"$f":"IF(NOT(ISBLANK(テーブル6[[#This Row],[防水]])),VLOOKUP(テーブル6[[#This Row],[防水]],塗装[],2,TRUE), IF(NOT(ISBLANK(テーブル6[[#This Row],[許可区分（防水）]])),\"D\",\"-\"))","v":"-"},{"$f":"IF(NOT(ISBLANK(テーブル6[[#This Row],[機械器具設置]])),VLOOKUP(テーブル6[[#This Row],[機械器具設置]],塗装[],2,TRUE), IF(NOT(ISBLANK(テーブル6[[#This Row],[許可区分（機械器具）]])),\"D\",\"-\"))","v":"-"},{"$f":"IF(NOT(ISBLANK(テーブル6[[#This Row],[電気通信]])),VLOOKUP(テーブル6[[#This Row],[電気通信]],電気[],2,TRUE), IF(NOT(ISBLANK(テーブル6[[#This Row],[許可区分(電気)]])),\"D\",\"-\"))","v":"-"},{"$f":"IF(NOT(ISBLANK(テーブル6[[#This Row],[水道施設]])),VLOOKUP(テーブル6[[#This Row],[水道施設]],水道[],2,TRUE), IF(NOT(ISBLANK(テーブル6[[#This Row],[許可区分（水道施設）]])),\"D\",\"-\"))","v":"-"}]
[30,"管内","鈴久建設株式会社","匝瑳市八日市場イ432番地1","鈴木　英人","0479-72-3077","0479-72-3079","特定",812,"特定",927,null,null,null,null,"特定",731,"特定",714,"特定",716,null,null,null,null,null,null,{"$f":"IF(NOT(ISBLANK(テーブル6[[#This Row],[土木一式]])),VLOOKUP(テーブル6[[#This Row],[土木一式]],土木[],2,TRUE), IF(NOT(ISBLANK(テーブル6[[#This Row],[許可区分(土木)]])),\"D\",\"-\"))","v":"A"},{"$f":"IF(NOT(ISBLANK(テーブル6[[#This Row],[建築一式]])),VLOOKUP(テーブル6[[#This Row],[建築一式]],建築[],2,TRUE), IF(NOT(ISBLANK(テーブル6[[#This Row],[許可区分（建築）]])),\"D\",\"-\"))","v":"A"},{"$f":"IF(NOT(ISBLANK(テーブル6[[#This Row],[電気]])),VLOOKUP(テーブル6[[#This Row],[電気]],電気[],2,TRUE), IF(NOT(ISBLANK(テーブル6[[#This Row],[許可区分（電気）]])),\"D\",\"-\"))","v":"-"},{"$f":"IF(NOT(ISBLANK(テーブル6[[#This Row],[管]])),VLOOKUP(テーブル6[[#This Row],[管]],管[],2,TRUE), IF(NOT(ISBLANK(テーブル6[[#This Row],[許可区分（管）]])),\"D\",\"-\"))","v":"-"},{"$f":"IF(NOT(ISBLANK(テーブル6[[#This Row],[ほ装]])),VLOOKUP(テーブル6[[#This Row],[ほ装]],ほ装[],2,TRUE), IF(NOT(ISBLANK(テーブル6[[#This Row],[許可区分(ほ装)]])),\"D\",\"-\"))","v":"A"},{"$f":"IF(NOT(ISBLANK(テーブル6[[#This Row],[塗装]])),VLOOKUP(テーブル6[[#This Row],[塗装]],塗装[],2,TRUE), IF(NOT(ISBLANK(テーブル6[[#This Row],[許可区分（塗装）]])),\"D\",\"-\"))","v":"B"},{"$f":"IF(NOT(ISBLANK(テーブル6[[#This Row],[防水]])),VLOOKUP(テーブル6[[#This Row],[防水]],塗装[],2,TRUE), IF(NOT(ISBLANK(テーブル6[[#This Row],[許可区分（防水）]])),\"D\",\"-\"))","v":"B"},{"$f":"IF(NOT(ISBLANK(テーブル6[[#This Row],[機械器具設置]])),VLOOKUP(テーブル6[[#This Row],[機械器具設置]],塗装[],2,TRUE), IF(NOT(ISBLANK(テーブル6[[#This Row],[許可区分（機械器具）]])),\"D\",\"-\"))","v":"-"},{"$f":"IF(NOT(ISBLANK(テーブル6[[#This Row],[電気通信]])),VLOOKUP(テーブル6[[#This Row],[電気通信]],電気[],2,TRUE), IF(NOT(ISBLANK(テーブル6[[#This Row],[許可区分(電気)]])),\"D\",\"-\"))","v":"-"},{"$f":"IF(NOT(ISBLANK(テーブル6[[#This Row],[水道施設]])),VLOOKUP(テーブル6[[#This Row],[水道施設]],水道[],2,TRUE), IF(NOT(ISBLANK(テーブル6[[#This Row],[許可区分（水道施設）]])),\"D\",\"-\"))","v":"-"}]
[31,"管内","株式会社渡邉電気","匝瑳市若潮町21番地4","渡邉　順一","0479-73-5838","0479-73-5878",null,null,null,null,"一般",681,null,null,null,null,null,null,null,null,null,null,null,null,null,null,{"$f":"IF(NOT(ISBLANK(テーブル6[[#This Row],[土木一式]])),VLOOKUP(テーブル6[[#This Row],[土木一式]],土木[],2,TRUE), IF(NOT(ISBLANK(テーブル6[[#This Row],[許可区分(土木)]])),\"D\",\"-\"))","v":"-"},{"$f":"IF(NOT(ISBLANK(テーブル6[[#This Row],[建築一式]])),VLOOKUP(テーブル6[[#This Row],[建築一式]],建築[],2,TRUE), IF(NOT(ISBLANK(テーブル6[[#This Row],[許可区分（建築）]])),\"D\",\"-\"))","v":"-"},{"$f":"IF(NOT(ISBLANK(テーブル6[[#This Row],[電気]])),VLOOKUP(テーブル6[[#This Row],[電気]],電気[],2,TRUE), IF(NOT(ISBLANK(テーブル6[[#This Row],[許可区分（電気）]])),\"D\",\"-\"))","v":"C"},{"$f":"IF(NOT(ISBLANK(テーブル6[[#This Row],[管]])),VLOOKUP(テーブル6[[#This Row],[管]],管[],2,TRUE), IF(NOT(ISBLANK(テーブル6[[#This Row],[許可区分（管）]])),\"D\",\"-\"))","v":"-"},{"$f":"IF(NOT(ISBLANK(テーブル6[[#This Row],[ほ装]])),VLOOKUP(テーブル6[[#This Row],[ほ装]],ほ装[],2,TRUE), IF(NOT(ISBLANK(テーブル6[[#This Row],[許可区分(ほ装)]])),\"D\",\"-\"))","v":"-"},{"$f":"IF(NOT(ISBLANK(テーブル6[[#This Row],[塗装]])),VLOOKUP(テーブル6[[#This Row],[塗装]],塗装[],2,TRUE), IF(NOT(ISBLANK(テーブル6[[#This Row],[許可区分（塗装）]])),\"D\",\"-\"))","v":"-"},{"$f":"IF(NOT(ISBLANK(テーブル6[[#This Row],[防水]])),VLOOKUP(テーブル6[[#This Row],[防水]],塗装[],2,TRUE), IF(NOT(ISBLANK(テーブル6[[#This Row],[許可区分（防水）]])),\"D\",\"-\"))","v":"-"},{"$f":"IF(NOT(ISBLANK(テーブル6[[#This Row],[機械器具設置]])),VLOOKUP(テーブル6[[#This Row],[機械器具設置]],塗装[],2,TRUE), IF(NOT(ISBLANK(テーブル6[[#This Row],[許可区分（機械器具）]])),\"D\",\"-\"))","v":"-"},{"$f":"IF(NOT(ISBLANK(テーブル6[[#This Row],[電気通信]])),VLOOKUP(テーブル6[[#This Row],[電気通信]],電気[],2,TRUE), IF(NOT(ISBLANK(テーブル6[[#This Row],[許可区分(電気)]])),\"D\",\"-\"))","v":"-"},{"$f":"IF(NOT(ISBLANK(テーブル6[[#This Row],[水道施設]])),VLOOKUP(テーブル6[[#This Row],[水道施設]],水道[],2,TRUE), IF(NOT(ISBLANK(テーブル6[[#This Row],[許可区分（水道施設）]])),\"D\",\"-\"))","v":"-"}]
[32,"管内","赤浦建設株式会社","匝瑳市八日市場イの263番地","小川　均","0479-72-0578","0479-73-7905","一般",645,"一般",601,null,null,null,null,"一般",601,null,null,null,null,null,null,null,null,null,null,{"$f":"IF(NOT(ISBLANK(テーブル6[[#This Row],[土木一式]])),VLOOKUP(テーブル6[[#This Row],[土木一式]],土木[],2,TRUE), IF(NOT(ISBLANK(テーブル6[[#This Row],[許可区分(土木)]])),\"D\",\"-\"))","v":"C"},{"$f":"IF(NOT(ISBLANK(テーブル6[[#This Row],[建築一式]])),VLOOKUP(テーブル6[[#This Row],[建築一式]],建築[],2,TRUE), IF(NOT(ISBLANK(テーブル6[[#This Row],[許可区分（建築）]])),\"D\",\"-\"))","v":"C"},{"$f":"IF(NOT(ISBLANK(テーブル6[[#This Row],[電気]])),VLOOKUP(テーブル6[[#This Row],[電気]],電気[],2,TRUE), IF(NOT(ISBLANK(テーブル6[[#This Row],[許可区分（電気）]])),\"D\",\"-\"))","v":"-"},{"$f":"IF(NOT(ISBLANK(テーブル6[[#This Row],[管]])),VLOOKUP(テーブル6[[#This Row],[管]],管[],2,TRUE), IF(NOT(ISBLANK(テーブル6[[#This Row],[許可区分（管）]])),\"D\",\"-\"))","v":"-"},{"$f":"IF(NOT(ISBLANK(テーブル6[[#This Row],[ほ装]])),VLOOKUP(テーブル6[[#This Row],[ほ装]],ほ装[],2,TRUE), IF(NOT(ISBLANK(テーブル6[[#This Row],[許可区分(ほ装)]])),\"D\",\"-\"))","v":"B"},{"$f":"IF(NOT(ISBLANK(テーブル6[[#This Row],[塗装]])),VLOOKUP(テーブル6[[#This Row],[塗装]],塗装[],2,TRUE), IF(NOT(ISBLANK(テーブル6[[#This Row],[許可区分（塗装）]])),\"D\",\"-\"))","v":"-"},{"$f":"IF(NOT(ISBLANK(テーブル6[[#This Row],[防水]])),VLOOKUP(テーブル6[[#This Row],[防水]],塗装[],2,TRUE), IF(NOT(ISBLANK(テーブル6[[#This Row],[許可区分（防水）]])),\"D\",\"-\"))","v":"-"},{"$f":"IF(NOT(ISBLANK(テーブル6[[#This Row],[機械器具設置]])),VLOOKUP(テーブル6[[#This Row],[機械器具設置]],塗装[],2,TRUE), IF(NOT(ISBLANK(テーブル6[[#This Row],[許可区分（機械器具）]])),\"D\",\"-\"))","v":"-"},{"$f":"IF(NOT(ISBLANK(テーブル6[[#This Row],[電気通信]])),VLOOKUP(テーブル6[[#This Row],[電気通信]],電気[],2,TRUE), IF(NOT(ISBLANK(テーブル6[[#This Row],[許可区分(電気)]])),\"D\",\"-\"))","v":"-"},{"$f":"IF(NOT(ISBLANK(テーブル6[[#This Row],[水道施設]])),VLOOKUP(テーブル6[[#This Row],[水道施設]],水道[],2,TRUE), IF(NOT(ISBLANK(テーブル6[[#This Row],[許可区分（水道施設）]])),\"D\",\"-\"))","v":"-"}]
[33,"管内","有限会社加瀬商会","（管内　物品・役務）",null,null,null,null,null,null,null,null,null,null,null,null,null,null,null,null,null,null,null,null,null,null,null,{"$f":"IF(NOT(ISBLANK(テーブル6[[#This Row],[土木一式]])),VLOOKUP(テーブル6[[#This Row],[土木一式]],土木[],2,TRUE), IF(NOT(ISBLANK(テーブル6[[#This Row],[許可区分(土木)]])),\"D\",\"-\"))","v":"-"},{"$f":"IF(NOT(ISBLANK(テーブル6[[#This Row],[建築一式]])),VLOOKUP(テーブル6[[#This Row],[建築一式]],建築[],2,TRUE), IF(NOT(ISBLANK(テーブル6[[#This Row],[許可区分（建築）]])),\"D\",\"-\"))","v":"-"},{"$f":"IF(NOT(ISBLANK(テーブル6[[#This Row],[電気]])),VLOOKUP(テーブル6[[#This Row],[電気]],電気[],2,TRUE), IF(NOT(ISBLANK(テーブル6[[#This Row],[許可区分（電気）]])),\"D\",\"-\"))","v":"-"},{"$f":"IF(NOT(ISBLANK(テーブル6[[#This Row],[管]])),VLOOKUP(テーブル6[[#This Row],[管]],管[],2,TRUE), IF(NOT(ISBLANK(テーブル6[[#This Row],[許可区分（管）]])),\"D\",\"-\"))","v":"-"},{"$f":"IF(NOT(ISBLANK(テーブル6[[#This Row],[ほ装]])),VLOOKUP(テーブル6[[#This Row],[ほ装]],ほ装[],2,TRUE), IF(NOT(ISBLANK(テーブル6[[#This Row],[許可区分(ほ装)]])),\"D\",\"-\"))","v":"-"},{"$f":"IF(NOT(ISBLANK(テーブル6[[#This Row],[塗装]])),VLOOKUP(テーブル6[[#This Row],[塗装]],塗装[],2,TRUE), IF(NOT(ISBLANK(テーブル6[[#This Row],[許可区分（塗装）]])),\"D\",\"-\"))","v":"-"},{"$f":"IF(NOT(ISBLANK(テーブル6[[#This Row],[防水]])),VLOOKUP(テーブル6[[#This Row],[防水]],塗装[],2,TRUE), IF(NOT(ISBLANK(テーブル6[[#This Row],[許可区分（防水）]])),\"D\",\"-\"))","v":"-"},{"$f":"IF(NOT(ISBLANK(テーブル6[[#This Row],[機械器具設置]])),VLOOKUP(テーブル6[[#This Row],[機械器具設置]],塗装[],2,TRUE), IF(NOT(ISBLANK(テーブル6[[#This Row],[許可区分（機械器具）]])),\"D\",\"-\"))","v":"-"},{"$f":"IF(NOT(ISBLANK(テーブル6[[#This Row],[電気通信]])),VLOOKUP(テーブル6[[#This Row],[電気通信]],電気[],2,TRUE), IF(NOT(ISBLANK(テーブル6[[#This Row],[許可区分(電気)]])),\"D\",\"-\"))","v":"-"},{"$f":"IF(NOT(ISBLANK(テーブル6[[#This Row],[水道施設]])),VLOOKUP(テーブル6[[#This Row],[水道施設]],水道[],2,TRUE), IF(NOT(ISBLANK(テーブル6[[#This Row],[許可区分（水道施設）]])),\"D\",\"-\"))","v":"-"}]

{"sheet":"公表名簿（管内　物品・役務）","index":1,"n_rows":102,"n_cols":12,"rows_kept":102,"cut":false,"hidden":false,"merged":[[0,6,0,9]]}
["八匝水道企業団建設工事等入札参加業者資格者名簿（管内物品・役務）　",null,null,null,null,null,{"$f":"'公表名簿（管内　建設工事）'!G1","v":"2025-04-01"}]
["番号","区域","商号又は名称","所在地","代表者氏名","電話番号","ＦＡＸ","業種１","業種２","業種３","業種４","業種５"]
[15,"管内","株式会社五十嵐商会　海匝営業所","横芝光町木戸9842番地3","真行寺　武","0479-84-1119","0479-84-1424","建物清掃","廃棄物処理","警備・受付","運搬・保管"]
[33,"管内","有限会社加瀬商会","匝瑳市八日市場ホ3329番地","加瀬　茂一","0479-72-1405","0479-73-5544","自動車整備業、販売"]
[]
[]
[]
[]
[]
[]
[]
[]
[]
[]
[]
[]
[]
[]
[]
[]
[]
[]
[]
[]
[]
[]
[25,"県内"]
[26,"県内"]
[27,"県内"]
[28,"県内"]
[29,"県内"]
[30,"県内"]
[31,"県内"]
[32,"県内"]
[33,"県内"]
[34,"県内"]
[35,"県内"]
[36,"県内"]
[37,"県内"]
[38,"県内"]
[39,"県内"]
[40,"県内"]
[41,"県内"]
[42,"県内"]
[43,"県内"]
[44,"県内"]
[45,"県内"]
[46,"県内"]
[47,"県内"]
[48,"県内"]
[49,"県内"]
[50,"県内"]
[51,"県内"]
[52,"県内"]
[53,"県内"]
[54,"県内"]
[55,"県内"]
[56,"県内"]
[57,"県内"]
[58,"県内"]
[59,"県内"]
[60,"県内"]
[61,"県内"]
[62,"県内"]
[63,"県内"]
[64,"県内"]
[65,"県内"]
[66,"県内"]
[67,"県内"]
[68,"県内"]
[69,"県内"]
[70,"県内"]
[71,"県内"]
[72,"県内"]
[73,"県内"]
[74,"県内"]
[75,"県内"]
[76,"県内"]
[77,"県内"]
[78,"県内"]
[79,"県内"]
[80,"県内"]
[81,"県内"]
[82,"県内"]
[83,"県内"]
[84,"県内"]
[85,"県内"]
[86,"県内"]
[87,"県内"]
[88,"県内"]
[89,"県内"]
[90,"県内"]
[91,"県内"]
[92,"県内"]
[93,"県内"]
[94,"県内"]
[95,"県内"]
[96,"県内"]
[97,"県内"]
[98,"県内"]
[99,"県内"]
[100,"県内"]

{"sheet":"等級(21-4月現在)","index":2,"n_rows":20,"n_cols":8,"rows_kept":20,"cut":false,"hidden":false,"merged":[]}
["列1","土木一式",null,"列1","建築一式",null,"列1","電気"]
[0,"-",null,0,"-",null,0,"-"]
[1,"D",null,1,"D",null,1,"D"]
[550,"C",null,600,"C",null,600,"C"]
[650,"B",null,700,"B",null,700,"B"]
[750,"A",null,800,"A",null,800,"A"]
[]
["列1","管",null,"列1","塗装",null,"列1","水道"]
[0,"-",null,0,"-",null,0,"-"]
[1,"D",null,1,"D",null,1,"D"]
[500,"C",null,600,"C",null,600,"C"]
[600,"B",null,700,"B",null,700,"B"]
[700,"A",null,800,"A",null,800,"A"]
[]
["列1","ほ装"]
[0,"-"]
[1,"D"]
[500,"C"]
[600,"B"]
[700,"A"]